Workbook

Sheet Notes
B2: Notes on the structure of these files
B3: All raw data are in the sheet "T-77" Any changes to the raw data should be made in "T-77", and nowhere else. At the top of the sheet are hyperlinks to the raw data used in the sheet. At the bottom of this sheet are statistical data. The data in this sheet are used by the other sheets.
B5: "52 Single-ring only" and "Chart for 52 Single-ring only" contain the results for all single-ring ligands
B6: "48 Single-ring only" and "Chart for 48 Single-ring" contain the results for single-ring ligands after outliers were deleted.
B7: "25 Double-ring only" and "Chart for 25 Double-ring" contain the results for double-ring ligands.
B8: "23 Double-ring only and "Chart for 23 Double-ring" contain the results for double-ring ligands after outliers were deleted.
B9: "Desolvation" contains data used in calculating the desolvation energy of the ligands.

Sheet T-77
B1: 77 Ligands, unconstrained optimization
B2: ID | C2: Assay | D2: Relative Binding Energy | E2: Proteins plus ligands | F2: Ligands on their own | G2: Binding energy | H2: Distance in kcal/mol from trendline | I2: Calc'd IC50 | J2: Dist. in IC50 from trend line | K2: Corr. for desolv. | L2: Atoms desolvated | M2: Correction for methoxy - amide H interaction
A3: 07756 | B3: 07756 | C3: 0.73 | D3: =G3-MIN(G$3:G$79) -> 1.2713 | E3: -6854.03989 | F3: 6.0336 | G3: =E3-F3+K3 -> -6850.59624 | H3: =IF(D3<>"",(D3-(L$87*C3+M$87)),"") -> -1.526299361 | I3: =IF(D3<>"", (D3-M$87)/L$87,"") -> -33.34376745 | J3: =IF(D3<>"", C3-(D3-M$87)/L$87,"") -> 34.07376745 | K3: =-([1]Desolvation!D$4+[1]Desolvation!D$5+[1]Desolvation!D$6) -> 9.47725 | L3: N1 O N2 | M3: -2
A4: 10618 | B4: 10618 | C4: 0.56 | D4: 0.28501 | E4: -6895.62374 | F4: -34.56396 | G4: =E4-F4+K4+M4 -> -6851.58253 | H4: -2.504974386 | I4: -55.36213223 | J4: 55.92213223 | K4: =-([1]Desolvation!D$4+[1]Desolvation!D$5+[1]Desolvation!D$6) -> 9.47725 | L4: N1 O N2
A5: 11616 | B5: 11616 | C5: 1.2 | D5: 0 | E5: -6896.44163 | F5: -35.09684 | G5: -6851.86754 | H5: -2.818652528 | I5: -61.72481881 | J5: 62.92481881 | K5: =-([1]Desolvation!D$4+[1]Desolvation!D$5+[1]Desolvation!D$6) -> 9.47725 | L5: N1 O N2
A6: 11628 | B6: 11628 | C6: 9.38 | D6: 1.83836 | E6: -6785.65861 | F6: 73.84782 | G6: -6850.02918 | H6: -1.346707213 | I6: -20.68447461 | J6: 30.06447461 | K6: =-([1]Desolvation!D$4+[1]Desolvation!D$5+[1]Desolvation!D$6) -> 9.47725 | L6: N1 O N2
A7: 12049 | B7: 12049 | C7: 67.1 | D7: 4.29181 | E7: -6844.6 | F7: 16.34796 | G7: -6847.57573 | H7: -1.478765236 | I7: 34.08740493 | J7: 33.01259507 | K7: =-(2*[1]Desolvation!D$4+[1]Desolvation!D$5+[1]Desolvation!D$6) -> 13.37223 | L7: 2N1 O N2
A8: 12808 | B8: 12808 | C8: 7.94 | D8: 3.3377 | E8: -6842.31952 | F8: 15.68757 | G8: -6848.52984 | H8: 0.2171361059 | I8: 12.78744039 | J8: -4.847440394 | K8: =-([1]Desolvation!D$4+[1]Desolvation!D$5+[1]Desolvation!D$6) -> 9.47725 | L8: N1 O N2
A9: 12809 | B9: 12809 | C9: 7.02 | D9: 1.5669 | E9: -6844.25169 | F9: 15.5262 | G9: -6850.30064 | H9: -1.512453441 | I9: -26.74466513 | J9: 33.76466513 | K9: =-([1]Desolvation!D$4+[1]Desolvation!D$5+[1]Desolvation!D$6) -> 9.47725 | L9: N1 O N2
A10: 12812 | B10: 12812 | C10: 34.4 | D10: 2.77883 | E10: -6848.03271 | F10: 7.3251 | G10: -6849.08871 | H10: -1.526982375 | I10: 0.3109846608 | J10: 34.08901534 | K10: =-([1]Desolvation!D$4+[1]Desolvation!D$5) -> 6.2691 | L10: N1 O
A11: 12814 | B11: 12814 | C11: 100 | D11: 2.43927 | E11: -6860.95962 | F11: -2.0541 | G11: -6849.42827 | H11: -4.805026892 | I11: -7.269499725 | J11: 107.2694997 | K11: =-(Desolvation!D$4+Desolvation!D$5+Desolvation!D$6) -> 9.47725 | L11: N1 O N2
A12: 12963 | B12: 12963 | C12: 4.27 | D12: 1.963 | E12: -6842.33754 | F12: 17.04425 | G12: -6849.90454 | H12: -0.9931700195 | I12: -17.90195731 | J12: 22.17195731 | K12: =-([1]Desolvation!D$4+[1]Desolvation!D$5+[1]Desolvation!D$6) -> 9.47725 | L12: N1 O N2
A13: 13204 | B13: R-13204 | C13: 100 | D13: 15.79798 | E13: -6915.90416 | F13: -66.30011 | G13: -6836.06956 | H13: 8.553683108 | I13: 290.9561233 | J13: -190.9561233 | K13: =-(Desolvation!D$4+Desolvation!D$5+Desolvation!D$6+2*Desolvation!D$8) -> 13.53449 | L13: N1 O N2 2-O-
A14: 13222 | B14: 13222 | C14: 40.7 | D14: 5.46094 | E14: -6842.00267 | F14: 13.88118 | G14: -6846.4066 | H14: 0.8729256061 | I14: 60.18756899 | J14: -19.48756899 | K14: =-([1]Desolvation!D$4+[1]Desolvation!D$5+[1]Desolvation!D$6) -> 9.47725 | L14: N1 O N2
A15: 13226 | B15: S-13226 | C15: 19.5 | D15: 8.60782 | E15: -6887.44128 | F15: -32.67569 | G15: -6843.25972 | H15: 4.969437798 | I15: 130.4398799 | J15: -110.9398799 | K15: =-(Desolvation!D$4+Desolvation!D$5+Desolvation!D$6+Desolvation!D$8) -> 11.50587 | L15: N1 O N2 -O-
A16: 13291 | B16: S-13291 | C16: 0.68 | D16: 6.78433 | E16: -6891.71902 | F16: -35.12994 | G16: -6845.08321 | H16: 3.988970337 | I16: 89.73150005 | J16: -89.05150005 | K16: =-(Desolvation!D$4+Desolvation!D$5+Desolvation!D$6+Desolvation!D$8) -> 11.50587 | L16: N1 O N2 -O-
A17: 13294 | B17: R-13294 | C17: 1.71 | D17: 6.3754 | E17: -6890.31568 | F17: -35.34629 | G17: -6845.49214 | H17: 3.533902547 | I17: 80.60236977 | J17: -78.89236977 | K17: =-(Desolvation!D$4+Desolvation!D$5+Desolvation!D$6) -> 9.47725 | L17: N1 O N2
A18: 13813 | B18: S-13813 | C18: 20.5 | D18: 6.36049 | E18: -6918.70929 | F18: -60.51684 | G18: -6845.50705 | H18: 2.677313826 | I18: 80.26951248 | J18: -59.76951248 | K18: =-(Desolvation!D$4+Desolvation!D$5+2*Desolvation!D$6) -> 12.6854 | L18: N1 O 2N2
A19: 13943 | B19: S'-13943 | C19: 0.08 | D19: 5.20796 | E19: -6922.38236 | F19: -64.21691 | G19: -6846.65958 | H19: 2.43947672 | I19: 54.53993399 | J19: -54.45993399 | K19: =-(Desolvation!D$4+Desolvation!D$5+Desolvation!D$6+Desolvation!D$8) -> 11.50587 | L19: N1 O N2 -O-
A20: 14229 | B20: R-14229 | C20: 2.75 | D20: 4.15777 | E20: -6857.36028 | F20: -0.17326 | G20: -6847.70977 | H20: 1.269686817 | I20: 31.09503796 | J20: -28.34503796 | K20: =-(Desolvation!D$4+Desolvation!D$5+Desolvation!D$6) -> 9.47725 | L20: N1 O N2
A21: 14233 | B21: R-14233 | C21: 0.96 | D21: 0.53875 | E21: -6987.16853 | F21: -126.36249 | G21: -6851.32879 | H21: -2.269151974 | I21: -49.69753066 | J21: 50.65753066 | K21: =-(Desolvation!D$4+Desolvation!D$5+Desolvation!D$6) -> 9.47725 | L21: N1 O N2
A22: 14512 | B22: S'-14512 | C22: 47.5 | D22: 7.93437 | E22: -6884.4362 | F22: -22.54547 | G22: -6843.93317 | H22: 3.041756601 | I22: 115.4054907 | J22: -67.9054907 | K22: =-(Desolvation!D$4+Desolvation!D$5+Desolvation!D$6+Desolvation!D$7+Desolvation!D$8) -> 17.95756 | L22: N1 O N2 N3 -O-
A23: 15013 | B23: R-15013 | C23: 3.31 | D23: 5.27158 | E23: -6891.96871 | F23: -35.8955 | G23: -6846.59596 | H23: 2.358412193 | I23: 55.96021441 | J23: -52.65021441 | K23: =-(Desolvation!D$4+Desolvation!D$5+Desolvation!D$6) -> 9.47725 | L23: N1 O N2
A24: 15025 | B24: 15025 | C24: 14 | D24: 2.02214 | E24: -6843.12584 | F24: 16.19681 | G24: -6849.8454 | H24: -1.36987536 | I24: -16.58169036 | J24: 30.58169036 | K24: =-([1]Desolvation!D$4+[1]Desolvation!D$5+[1]Desolvation!D$6) -> 9.47725 | L24: N1 O N2
A25: 15026 | B25: 15026 | C25: 23.7 | D25: 2.48488 | E25: -6852.67967 | F25: 6.18024 | G25: -6849.38266 | H25: -1.341636882 | I25: -6.251282347 | J25: 29.95128235 | K25: =-([1]Desolvation!D$4+[1]Desolvation!D$5+[1]Desolvation!D$6) -> 9.47725 | L25: N1 O N2
A26: 15027 | B26: 15027 | C26: 58.4 | D26: 4.51484 | E26: -6851.76568 | F26: 5.06427 | G26: -6847.3527 | H26: -0.8660276859 | I26: 39.06642316 | J26: 19.33357684 | K26: =-([1]Desolvation!D$4+[1]Desolvation!D$5+[1]Desolvation!D$6) -> 9.47725 | L26: N1 O N2
A27: 15028 | B27: 15028 | C27: 72.5 | D27: 4.28634 | E27: -6884.26973 | F27: -25.18266 | G27: -6847.5812 | H27: -1.726122681 | I27: 33.96529028 | J27: 38.53470972 | K27: 11.50587 | L27: N1 O N2 -O-
A28: 15029 | B28: 15029 | C28: 100 | D28: 9.26355 | E28: -6807.32849 | F28: 44.75275 | G28: -6842.60399 | H28: 2.019253108 | I28: 145.0786802 | J28: -45.07868022 | K28: =-(Desolvation!D$4+Desolvation!D$5+Desolvation!D$6) -> 9.47725 | L28: N1 O N2
A29: 15030 | B29: 15030 | C29: 0.35 | D29: 1.13629 | E29: -6899.77541 | F29: -39.56691 | G29: -6850.73125 | H29: -1.644287652 | I29: -36.35778911 | J29: 36.70778911 | K29: =-([1]Desolvation!D$4+[1]Desolvation!D$5+[1]Desolvation!D$6) -> 9.47725 | L29: N1 O N2
A30: 15031 | B30: 15031 | C30: 4.97 | D30: 0.31776 | E30: -6892.96925 | F30: -31.94222 | G30: -6851.54978 | H30: -2.669765799 | I30: -54.63100705 | J30: 59.60100705 | K30: =-([1]Desolvation!D$4+[1]Desolvation!D$5+[1]Desolvation!D$6) -> 9.47725 | L30: N1 O N2
A31: 15034 | B31: 15034 | C31: 1.85 | D31: 0.81865 | E31: -6892.34074 | F31: -31.8146 | G31: -6851.04889 | H31: -2.029118609 | I31: -43.44892193 | J31: 45.29892193 | K31: =-([1]Desolvation!D$4+[1]Desolvation!D$5+[1]Desolvation!D$6) -> 9.47725 | L31: N1 O N2
A32: 15035 | B32: 15035 | C32: 30.5 | D32: 4.17142 | E32: -6883.66784 | F32: -24.46585 | G32: -6847.69612 | H32: 0.04030411336 | I32: 31.39976647 | J32: -0.8997664684 | K32: =-([1]Desolvation!D$4+[1]Desolvation!D$5+[1]Desolvation!D$6+[1]Desolvation!D$8) -> 11.50587 | L32: N1 O N2 -O-
A33: 15036 | B33: 15036 | C33: 1.83 | D33: 1.04062 | E33: -6813.62423 | F33: 46.67994 | G33: -6850.82692 | H33: -1.80625273 | I33: -38.4935676 | J33: 40.3235676 | K33: =-([1]Desolvation!D$4+[1]Desolvation!D$5+[1]Desolvation!D$6) -> 9.47725 | L33: N1 O N2
A34: 15037 | B34: 15037 | C34: 4.8 | D34: 1.48461 | E34: -6852.91393 | F34: 6.94625 | G34: -6850.38293 | H34: -1.495300824 | I34: -28.5817427 | J34: 33.3817427 | K34: =-([1]Desolvation!D$4+[1]Desolvation!D$5+[1]Desolvation!D$6) -> 9.47725 | L34: N1 O N2
A35: 15038 | B35: 15038 | C35: 0.37 | D35: =G35-MIN(G$3:G$79) -> 1.69391 | E35: -6899.69256 | F35: -40.04168 | G35: -6850.17363 | H35: =IF(D35<>"",(D35-(L$87*C35+M$87)),"") -> -1.087563531 | I35: =IF(D35<>"", (D35-M$87)/L$87,"") -> -23.90923892 | J35: =IF(D35<>"", C35-(D35-M$87)/L$87,"") -> 24.27923892 | K35: =-([1]Desolvation!D$4+[1]Desolvation!D$5+[1]Desolvation!D$6) -> 9.47725 | L35: N1 O N2
A36: 15040 | B36: 15040 | C36: 0.57 | D36: 1.25415 | E36: -6938.5225 | F36: -78.43186 | G36: -6850.61339 | H36: -1.536282326 | I36: -33.72663147 | J36: 34.29663147 | K36: =-([1]Desolvation!D$4+[1]Desolvation!D$5+[1]Desolvation!D$6) -> 9.47725 | L36: N1 O N2
A37: 15041 | B37: 15041 | C37: 0.43 | D37: 1.71217 | E37: -6822.40634 | F37: 37.22628 | G37: -6850.15537 | H37: -1.07199117 | I37: -23.50159478 | J37: 23.93159478 | K37: =-([1]Desolvation!D$4+[1]Desolvation!D$5+[1]Desolvation!D$6) -> 9.47725 | L37: N1 O N2
A38: 15042 | B38: 15042 | C38: 23.6 | D38: 1.57319 | E38: -6898.68482 | F38: -38.91322 | G38: -6850.29435 | H38: -2.248847485 | I38: -26.60424444 | J38: 50.20424444 | K38: =-([1]Desolvation!D$4+[1]Desolvation!D$5+[1]Desolvation!D$6) -> 9.47725 | L38: N1 O N2
A39: 15045 | B39: 15045 | C39: 13.2 | D39: 0.79469 | E39: -6937.27999 | F39: -76.72989 | G39: -6851.07285 | H39: -2.561490183 | I39: -43.98381534 | J39: 57.18381534 | K39: =-([1]Desolvation!D$4+[1]Desolvation!D$5+[1]Desolvation!D$6) -> 9.47725 | L39: N1 O N2
A40: 15046 | B40: 15046 | C40: 1.71 | D40: 0.48556 | E40: -6938.40591 | F40: -77.54668 | G40: -6851.38198 | H40: -2.355937453 | I40: -50.88496724 | J40: 52.59496724 | K40: =-([1]Desolvation!D$4+[1]Desolvation!D$5+[1]Desolvation!D$6) -> 9.47725 | L40: N1 O N2
A41: 15049 | B41: 15049 | C41: 6.94 | D41: 0.41132 | E41: -7009.28078 | F41: -148.34731 | G41: -6851.45622 | H41: -2.664449923 | I41: -52.54233313 | J41: 59.48233313 | K41: =-([1]Desolvation!D$4+[1]Desolvation!D$5+[1]Desolvation!D$6) -> 9.47725 | L41: N1 O N2
A42: 15050 | B42: 15050 | C42: 24.8 | D42: 0.11746 | E42: -7011.49096 | F42: -150.26363 | G42: -6851.75008 | H42: -3.75833025 | I42: -59.10259094 | J42: 83.90259094 | K42: =-([1]Desolvation!D$4+[1]Desolvation!D$5+[1]Desolvation!D$6) -> 9.47725 | L42: N1 O N2
A43: 15052 | B43: 15052 | C43: 52.6 | D43: 5.07506 | E43: -6839.9631 | F43: 16.30663 | G43: -6846.79248 | H43: -0.04600265233 | I43: 51.57301688 | J43: 1.026983119 | K43: =-([1]Desolvation!D$4+[1]Desolvation!D$5+[1]Desolvation!D$6) -> 9.47725 | L43: N1 O N2
A44: 15054 | B44: 15054 | C44: 100 | D44: 2.29654 | E44: -6852.82785 | F44: 6.2204 | G44: -6849.571 | H44: -4.947756892 | I44: -10.45586601 | J44: 110.455866 | K44: =-([1]Desolvation!D$4+[1]Desolvation!D$5+[1]Desolvation!D$6) -> 9.47725 | L44: N1 O N2
A45: 15055 | B45: 15055 | C45: 24.7 | D45: 2.3829 | E45: -6890.07861 | F45: -31.11672 | G45: -6849.48464 | H45: -1.488410853 | I45: -8.527927999 | J45: 33.227928 | K45: =-([1]Desolvation!D$4+[1]Desolvation!D$5+[1]Desolvation!D$6) -> 9.47725 | L45: N1 O N2
A46: 15056 | B46: 15056 | C46: 29.5 | D46: 0.70399 | E46: -6853.5888 | F46: 7.052 | G46: -6851.16355 | H46: -3.382331915 | I46: -46.00864139 | J46: 75.50864139 | K46: =-([1]Desolvation!D$4+[1]Desolvation!D$5+[1]Desolvation!D$6) -> 9.47725 | L46: N1 O N2
A47: 15057 | B47: 15057 | C47: 35 | D47: 4.13084 | E47: -6884.77607 | F47: -25.5335 | G47: -6847.7367 | H47: -0.2018487575 | I47: 30.49384099 | J47: 4.506159013 | K47: =-([1]Desolvation!D$4+[1]Desolvation!D$5+[1]Desolvation!D$6+[1]Desolvation!D$8) -> 11.50587 | L47: N1 O N2 -O-
A48: 15216 | B48: 15216 | C48: 6.96 | D48: 1.64785 | E48: -6899.20674 | F48: -39.5098 | G48: -6850.21969 | H48: -1.428815802 | I48: -24.93750229 | J48: 31.89750229 | K48: =-([1]Desolvation!D$4+[1]Desolvation!D$5+[1]Desolvation!D$6) -> 9.47725 | L48: N1 O N2
A49: 15217 | B49: 15217 | C49: 1.37 | D49: 2.167 | E49: -6859.84217 | F49: -0.66438 | G49: -6849.70054 | H49: -0.6592675027 | I49: -13.34777303 | J49: 14.71777303 | K49: =-([1]Desolvation!D$4+[1]Desolvation!D$5+[1]Desolvation!D$6) -> 9.47725 | L49: N1 O N2
A50: 15339 | B50: R'-15339 | C50: 38.5 | D50: 8.21941 | E50: -6917.37491 | F50: -64.22091 | G50: -6843.64813 | H50: 3.729942343 | I50: 121.768847 | J50: -83.26884701 | K50: =-(Desolvation!D$4+Desolvation!D$5+Desolvation!D$6+Desolvation!D$8) -> 11.50587 | L50: N1 O N2 -O- | M50: =M$3 -> -2
A51: 15340 | B51: R'-15340 | C51: 0.31 | D51: 6.63529 | E51: -6923.51663 | F51: -70.80713 | G51: -6845.23225 | H51: 3.856504107 | I51: 86.4042666 | J51: -86.0942666 | K51: =-(Desolvation!D$4+Desolvation!D$5+Desolvation!D$6) -> 9.47725 | L51: N1 O N2 | M51: =M$3 -> -2
A52: 15341 | B52: S'-15341 | C52: 60.9 | D52: 5.52886 | E52: -6930.67028 | F52: -70.79711 | G52: -6846.33868 | H52: 0.03600738589 | I52: 61.70384446 | J52: -0.8038444649 | K52: =-(Desolvation!D$4+Desolvation!D$5+Desolvation!D$6+2*Desolvation!D$8) -> 13.53449 | L52: N1 O N2 2-O-
A53: 15359 | B53: S-15359 | C53: 92.1 | D53: 11.60403 | E53: -6928.15017 | F53: -76.38079 | G53: -6840.26351 | H53: 4.713605481 | I53: 197.3285686 | J53: -105.2285686 | K53: =-(Desolvation!D$4+Desolvation!D$5+Desolvation!D$6+Desolvation!D$8) -> 11.50587 | L53: N1 O N2 -O-
A54: 15381 | B54: R-15381 | C54: 0.05 | D54: 2.66701 | E54: -6853.78426 | F54: 1.68537 | G54: -6849.20053 | H54: -0.1001294606 | I54: -2.18533341 | J54: 2.23533341 | K54: =-([1]Desolvation!D$4+[1]Desolvation!D$5) -> 6.2691 | L54: N1 O
A55: 16321 | B55: R'-16321 | C55: 0.47 | D55: 6.52818 | E55: -6877.29 | F55: -22.44477 | G55: -6845.33936 | H55: 3.742227071 | I55: 84.0130966 | J55: -83.5430966 | K55: =-(Desolvation!D$4+Desolvation!D$5+Desolvation!D$6+Desolvation!D$8) -> 11.50587 | L55: N1 O N2 -O- | M55: =M$3 -> -2
A56: 16447 | B56: R-16447 | C56: 0.12 | D56: 4.82279 | E56: -6933.64367 | F56: -75.09305 | G56: -6847.04475 | H56: 2.052514961 | I56: 45.94123223 | J56: -45.82123223 | K56: =-(Desolvation!D$4+Desolvation!D$5+Desolvation!D$6+Desolvation!D$8) -> 11.50587 | L56: N1 O N2 -O-
A57: 16452 | B57: S'-16452 | C57: 0.16 | D57: 6.19708 | E57: -6968.38601 | F57: -111.20968 | G57: -6845.67046 | H57: 3.425013203 | I57: 76.62147692 | J57: -76.46147692 | K57: =-(Desolvation!D$4+Desolvation!D$5+Desolvation!D$6+Desolvation!D$8) -> 11.50587 | L57: N1 O N2 -O-
A58: 16453 | B58: R-16453 | C58: 12.1 | D58: 3.90262 | E58: -6899.64146 | F58: -45.40744 | G58: -6847.96492 | H58: 0.5957131853 | I58: 25.39895894 | J58: -13.29895894 | K58: =-([1]Desolvation!D$4+[1]Desolvation!D$5) -> 6.2691 | L58: N1 O
A59: 16454 | B59: R-16454 | C59: 5.77 | D59: 4.72149 | E59: -6978.69886 | F59: -122.07556 | G59: -6847.14605 | H59: 1.698129024 | I59: 43.67976719 | J59: -37.90976719 | K59: =-(Desolvation!D$4+Desolvation!D$5+Desolvation!D$6) -> 9.47725 | L59: N1 O N2
A60: 16561 | B60: 16561 | C60: 76 | D60: 8.99521 | E60: -6832.73504 | F60: 27.4045 | G60: -6842.87233 | H60: 2.825968419 | I60: 139.0881419 | J60: -63.08814194 | K60: =-(3*[1]Desolvation!D$4+[1]Desolvation!D$5+[1]Desolvation!D$6) -> 17.26721 | L60: 3N1 O N2
A61: 16570 | B61: 16570 | C61: 38 | D61: 3.70987 | E61: -6882.74091 | F61: -18.6543 | G61: -6848.15767 | H61: -0.7572006714 | I61: 21.09592453 | J61: 16.90407547 | K61: =-([1]Desolvation!D$4+[1]Desolvation!D$5+[1]Desolvation!D$6+[1]Desolvation!D$7) -> 15.92894 | L61: N1 O N2N3
A62: 16574 | B62: 16574 | C62: 65.9 | D62: 7.98688 | E62: -6813.27924 | F62: 40.07867 | G62: -6843.88066 | H62: 2.270057529 | I62: 116.5777467 | J62: -50.67774666 | K62: =-([1]Desolvation!D$4+[1]Desolvation!D$5+[1]Desolvation!D$6) -> 9.47725 | L62: N1 O N2
A63: 16576 | B63: 16576 | C63: 100 | D63: 0.26554 | E63: -6863.96037 | F63: -2.88112 | G63: -6851.602 | H63: -6.978756892 | I63: -55.79678893 | J63: 155.7967889 | K63: =-([1]Desolvation!D$4+[1]Desolvation!D$5+[1]Desolvation!D$6) -> 9.47725 | L63: N1 O N2
A64: 16769 | B64: 16769 | C64: 9 | D64: 2.36538 | E64: -6823.24418 | F64: 35.73523 | G64: -6849.50216 | H64: -0.8026655037 | I64: -8.919052061 | J64: 17.91905206 | K64: =-([1]Desolvation!D$4+[1]Desolvation!D$5+[1]Desolvation!D$6) -> 9.47725 | L64: N1 O N2
A65: 17142 | B65: R'-17142 | C65: 23.3 | D65: 8.43325 | E65: -6964.33888 | F65: -111.39872 | G65: -6843.43429 | H65: 4.624650707 | I65: 126.5427037 | J65: -103.2427037 | K65: =-(Desolvation!D$4+Desolvation!D$5+Desolvation!D$6+Desolvation!D$8) -> 11.50587 | L65: N1 O N2 -O- | M65: =M$3 -> -2
A66: 17145 | B66: S-17145 | C66: 0.25 | D66: 10.37178 | E66: -6974.89277 | F66: -121.89114 | G66: -6841.49576 | H66: 7.595681745 | I66: 169.8192863 | J66: -169.5692863 | K66: =-(Desolvation!D$4+Desolvation!D$5+Desolvation!D$6+Desolvation!D$8) -> 11.50587 | L66: N1 O N2 -O-
A67: 17396 | B67: R'-17396 | C67: 4.18 | D67: =G67-MIN(G$3:G$79) -> 5.73218 | E67: -6959.66332 | F67: -106.05071 | G67: -6846.13536 | H67: =IF(D67<>"",(D67-(L$87*C67+M$87)),"") -> 2.780041438 | I67: =IF(D67<>"", (D67-M$87)/L$87,"") -> 66.24284813 | J67: =IF(D67<>"", C67-(D67-M$87)/L$87,"") -> -62.06284813 | K67: =-(Desolvation!D$4+Desolvation!D$5+Desolvation!D$6) -> 9.47725 | L67: N1 O N2 | M67: =M$3 -> -2
A68: 18301 | B68: S'-18301 | C68: 0.4 | D68: 4.84281 | E68: -6970.00475 | F68: -109.44553 | G68: -6847.02473 | H68: =IF(D68<>"",(D68-(L$87*C68+M$87)),"") -> 2.059992649 | I68: =IF(D68<>"", (D68-M$87)/L$87,"") -> 46.38816737 | J68: =IF(D68<>"", C68-(D68-M$87)/L$87,"") -> -45.98816737 | K68: =-(Desolvation!D$4+Desolvation!D$5+Desolvation!D$6+2*Desolvation!D$8) -> 13.53449 | L68: N1 O N2 2-O-
A69: 18474 | B69: 18474 | C69: 100 | D69: 2.44899 | E69: -6939.38478 | F69: -80.48898 | G69: =E69-F69+K69+M69 -> -6849.41855 | H69: -4.795306892 | I69: -7.052506239 | J69: 107.0525062 | K69: =-(Desolvation!D$4+Desolvation!D$5+Desolvation!D$6) -> 9.47725 | L69: N1 O N2
A70: 18475 | B70: 18475 | C70: 1.24 | D70: 2.07709 | E70: -6862.65877 | F70: -3.39107 | G70: -6849.79045 | H70: -0.7433542864 | I70: -15.35496278 | J70: 16.59496278 | K70: =-([1]Desolvation!D$4+[1]Desolvation!D$5+[1]Desolvation!D$6) -> 9.47725 | L70: N1 O N2
A71: 18807 | B71: 18807 | C71: 7.78 | D71: 0.69831 | E71: -6894.83101 | F71: -34.18453 | G71: -6851.16923 | H71: -2.415086859 | I71: -46.13544417 | J71: 53.91544417 | K71: =-([1]Desolvation!D$4+[1]Desolvation!D$5+[1]Desolvation!D$6) -> 9.47725 | L71: N1 O N2
A72: 18808 | B72: 18808 | C72: 100 | D72: 6.19022 | E72: -6932.04263 | F72: -72.83082 | G72: -6845.67732 | H72: -1.054076892 | I72: 76.46833131 | J72: 23.53166869 | K72: =-([1]Desolvation!D$4+[1]Desolvation!D$5+[1]Desolvation!D$6+[1]Desolvation!D$8+[1]Desolvation!D$8) -> 13.53449 | L72: N1 O N2 2-O-
A73: 19152 | B73: 19152 | C73: 100 | D73: 7.66629 | E73: -7049.91848 | F73: -196.23998 | G73: -6844.20125 | H73: 0.4219931081 | I73: 109.4207568 | J73: -9.420756764 | K73: =-([1]Desolvation!D$4+[1]Desolvation!D$5+[1]Desolvation!D$6) -> 9.47725 | L73: N1 O N2
A74: 19154 | B74: 19154 | C74: 6.78 | D74: 0.02411 | E74: -6857.57033 | F74: 3.75035 | G74: -6851.84343 | H74: -3.044492887 | I74: -61.18657673 | J74: 67.96657673 | K74: =-([1]Desolvation!D$4+[1]Desolvation!D$5+[1]Desolvation!D$6) -> 9.47725 | L74: N1 O N2
A75: 19183 | B75: 19183 | C75: 1.63 | D75: 2.24978 | E75: -6947.76775 | F75: -88.67274 | G75: -6849.61776 | H75: -0.5881339352 | I75: -11.49975649 | J75: 13.12975649 | K75: =-([1]Desolvation!D$4+[1]Desolvation!D$5+[1]Desolvation!D$6) -> 9.47725 | L75: N1 O N2
A76: 19184 | B76: 19184 | C76: 3.81 | D76: 2.56775 | E76: -6949.25778 | F76: -90.48074 | G76: -6849.29979 | H76: -0.3678147927 | I76: -4.401256605 | J76: 8.211256605 | K76: =-([1]Desolvation!D$4+[1]Desolvation!D$5+[1]Desolvation!D$6) -> 9.47725 | L76: N1 O N2
A77: 19185 | B77: 19185 | C77: 2.21 | D77: 0.24343 | E77: -6900.68315 | F77: -39.58179 | G77: -6851.62411 | H77: -2.620464439 | I77: -56.29038214 | J77: 58.50038214 | K77: =-([1]Desolvation!D$4+[1]Desolvation!D$5+[1]Desolvation!D$6) -> 9.47725 | L77: N1 O N2
A78: 19349 | B78: D-19349 | C78: 76.6 | D78: 14.09312 | E78: -6895.65697 | F78: -46.37668 | G78: -6837.77442 | H78: 7.897002036 | I78: 252.8960909 | J78: -176.2960909 | K78: =-(Desolvation!D$4+Desolvation!D$5+Desolvation!D$6+Desolvation!D$8) -> 11.50587 | L78: N1 O N2 -O-
A79: 19370 | B79: 19370 | C79: 0.72 | D79: 1.92723 | E79: -6907.88999 | F79: -48.47243 | G79: -6849.94031 | H79: -0.8699214214 | I79: -18.70050227 | J79: 19.42050227 | K79: =-([1]Desolvation!D$4+[1]Desolvation!D$5+[1]Desolvation!D$6) -> 9.47725 | L79: N1 O N2
H81: kcal mol-1 | J81: IC50 | L81: Results for Optimized globule
G82: AUE: | H82: =AVERAGE(ABS(H3:H79)) -> 2.345644241 | J82: =AVERAGE(ABS(J3:J79)) -> 52.36517712
D83: =MAX(D3:D79) -> 15.79798 | G83: Max: | H83: =MAX(H3:H79) -> 8.553683108 | J83: =MAX(J3:J79) -> 155.7967889
G84: Min: | H84: =MIN(H3:H79) -> -6.978756892 | J84: =MIN(J3:J79) -> -190.9561233
I85: Ranges
G86: Max-Min: | H86: =H83-H84 -> 15.53244 | J86: =J83-J84 -> 346.7529123 | L86: SLOPE | M86: INTERCEPT | N86: CORREL (Correlation) i.e.: R2
L87: =SLOPE(D$3:D$79,C$3:C$79) -> 0.0447939713 | M87: =INTERCEPT(D$3:D$79,C$3:C$79) -> 2.764899762 | N87: =(CORREL(D$3:D$79,C$3:C$79))^2 -> 0.2043808658

Sheet 52 Single-ring only
A1: 52 Ligands with one ring, unconstrained optimization
A2: ID | B2: Assay | C2: Relative Binding Energy | D2: Proteins plus ligands | E2: Ligands on their own | F2: Binding energy | G2: ID | H2: Distance in kcal/mol from trendline | I2: Calc'd IC50 | J2: Dist. in IC50 from trend line | K2: Corr. for desolv. | L2: Atoms desolvated
A3: 07756 | B3: 0.73 | C3: =F3-MIN(F$3:F$54) -> 1.2713 | D3: ='T-77'!E3 -> -6854.03989 | E3: ='T-77'!F3 -> 6.0336 | F3: =D3-E3+K3 -> -6850.59624 | G3: 07756 | H3: =IF(C3<>"",(C3-(L$61*B3+M$61)),"") -> -0.08383755129 | I3: =IF(C3<>"", (C3-M$61)/L$61,"") -> -1.269944734 | J3: =IF(C3<>"", B3-(C3-M$61)/L$61,"") -> 1.999944734 | K3: ='T-77'!K3 -> 9.47725 | L3: N1 O N2
A4: 10618 | B4: 0.56 | C4: 0.28501 | D4: ='T-77'!E4 -> -6895.62374 | E4: ='T-77'!F4 -> -34.56396 | F4: -6851.58253 | G4: 10618 | H4: -1.063001163 | I4: -24.79789208 | J4: 25.35789208 | K4: ='T-77'!K4 -> 9.47725 | L4: N1 O N2
A5: 11616 | B5: 1.2 | C5: 0 | D5: ='T-77'!E5 -> -6896.44163 | E5: ='T-77'!F5 -> -35.09684 | F5: -6851.86754 | G5: 11616 | H5: -1.37483992 | I5: -31.59680545 | J5: 32.79680545 | K5: ='T-77'!K5 -> 9.47725 | L5: N1 O N2
A6: 11628 | B6: 9.38 | C6: 1.83836 | D6: ='T-77'!E6 -> -6785.65861 | E6: ='T-77'!F6 -> 73.84782 | F6: -6850.02918 | G6: 11628 | H6: 0.1206150195 | I6: 12.25727122 | J6: -2.877271216 | K6: ='T-77'!K6 -> 9.47725 | L6: N1 O N2
A7: 12049 | B7: 67.1 | C7: 4.29181 | D7: ='T-77'!E7 -> -6844.6 | E7: ='T-77'!F7 -> 16.34796 | F7: -6847.57573 | G7: 12049 | H7: 0.1544464285 | I7: 70.78431946 | J7: -3.684319456 | K7: ='T-77'!K7 -> 13.37223 | L7: 2N1 O N2
A8: 12808 | B8: 7.94 | C8: 3.3377 | D8: ='T-77'!E8 -> -6842.31952 | E8: ='T-77'!F8 -> 15.68757 | F8: -6848.52984 | G8: 12808 | H8: 1.680319724 | I8: 48.02402599 | J8: -40.08402599 | K8: ='T-77'!K8 -> 9.47725 | L8: N1 O N2
A9: 12809 | B9: 7.02 | C9: 1.5669 | D9: ='T-77'!E9 -> -6844.25169 | E9: ='T-77'!F9 -> 15.5262 | F9: -6850.30064 | G9: 12809 | H9: -0.05191393621 | I9: 5.781593084 | J9: 1.238406916 | K9: ='T-77'!K9 -> 9.47725 | L9: N1 O N2
A10: 12812 | B10: 34.4 | C10: 2.77883 | D10: ='T-77'!E10 -> -6848.03271 | E10: ='T-77'!F10 -> 7.3251 | F10: -6849.08871 | G10: 12812 | H10: 0.01224827059 | I10: 34.69218249 | J10: -0.2921824874 | K10: ='T-77'!K10 -> 6.2691 | L10: N1 O
A11: 12814 | B11: 100 | C11: 2.43927 | D11: ='T-77'!E11 -> -6860.95962 | E11: ='T-77'!F11 -> -2.0541 | F11: -6849.42827 | G11: 12814 | H11: -3.0772594 | I11: 26.5919789 | J11: 73.4080211 | K11: ='T-77'!K11 -> 9.47725 | L11: N1 O N2
A12: 12963 | B12: 4.27 | C12: 1.963 | D12: ='T-77'!E12 -> -6842.33754 | E12: ='T-77'!F12 -> 17.04425 | F12: -6849.90454 | G12: 12963 | H12: 0.4594658823 | I12: 15.23055834 | J12: -10.96055834 | K12: ='T-77'!K12 -> 9.47725 | L12: N1 O N2
A13: 13222 | B13: 40.7 | C13: 5.46094 | D13: ='T-77'!E14 -> -6842.00267 | E13: ='T-77'!F14 -> 13.88118 | F13: -6846.4066 | G13: 13222 | H13: 2.430262686 | I13: 98.67391489 | J13: -57.97391489 | K13: ='T-77'!K14 -> 9.47725 | L13: N1 O N2
A14: 15025 | B14: 14 | C14: 2.02214 | D14: ='T-77'!E24 -> -6843.12584 | E14: ='T-77'!F24 -> 16.19681 | F14: -6849.8454 | G14: 15025 | H14: 0.1107249244 | I14: 16.641343 | J14: -2.641343003 | K14: ='T-77'!K24 -> 9.47725 | L14: N1 O N2
A15: 15026 | B15: 23.7 | C15: 2.48488 | D15: ='T-77'!E25 -> -6852.67967 | E15: ='T-77'!F25 -> 6.18024 | F15: -6849.38266 | G15: 15026 | H15: 0.1668415645 | I15: 27.68000542 | J15: -3.980005418 | K15: ='T-77'!K25 -> 9.47725 | L15: N1 O N2
A16: 15027 | B16: 58.4 | C16: 4.51484 | D16: ='T-77'!E26 -> -6851.76568 | E16: ='T-77'!F26 -> 5.06427 | F16: -6847.3527 | G16: 15027 | H16: 0.7421798544 | I16: 76.10469997 | J16: -17.70469997 | K16: ='T-77'!K26 -> 9.47725 | L16: N1 O N2
A17: 15028 | B17: 72.5 | C17: 4.28634 | D17: ='T-77'!E27 -> -6884.26973 | E17: ='T-77'!F27 -> -25.18266 | F17: -6847.5812 | G17: 15028 | H17: -0.07739121519 | I17: 70.65383261 | J17: 1.846167391 | K17: ='T-77'!K27 -> 11.50587 | L17: N1 O N2 -O-
A18: 15029 | B18: 100 | C18: 9.26355 | D18: ='T-77'!E28 -> -6807.32849 | E18: ='T-77'!F28 -> 44.75275 | F18: -6842.60399 | G18: 15029 | H18: 3.7470206 | I18: 189.3851741 | J18: -89.38517409 | K18: ='T-77'!K28 -> 9.47725 | L18: N1 O N2
A19: 15030 | B19: 0.35 | C19: 1.13629 | D19: ='T-77'!E29 -> -6899.77541 | E19: ='T-77'!F29 -> -39.56691 | F19: -6850.73125 | G19: 15030 | H19: -0.2029179764 | I19: -4.490608201 | J19: 4.840608201 | K19: ='T-77'!K29 -> 9.47725 | L19: N1 O N2
A20: 15031 | B20: 4.97 | C20: 0.31776 | D20: ='T-77'!E30 -> -6892.96925 | E20: ='T-77'!F30 -> -31.94222 | F20: -6851.54978 | G20: 15031 | H20: -1.215118071 | I20: -24.01664085 | J20: 28.98664085 | K20: ='T-77'!K30 -> 9.47725 | L20: N1 O N2
A21: 15034 | B21: 1.85 | C21: 0.81865 | D21: ='T-77'!E31 -> -6892.34074 | E21: ='T-77'!F31 -> -31.8146 | F21: -6851.04889 | G21: 15034 | H21: -0.5834378774 | I21: -12.06791021 | J21: 13.91791021 | K21: ='T-77'!K31 -> 9.47725 | L21: N1 O N2
A22: 15035 | B22: 30.5 | C22: 4.17142 | D22: ='T-77'!E32 -> -6883.66784 | E22: ='T-77'!F32 -> -24.46585 | F22: -6847.69612 | G22: 15035 | H22: 1.568326013 | I22: 67.91241608 | J22: -37.41241608 | K22: ='T-77'!K32 -> 11.50587 | L22: N1 O N2 -O-
A23: 15036 | B23: 1.83 | C23: 1.04062 | D23: ='T-77'!E33 -> -6813.62423 | E23: ='T-77'!F33 -> 46.67994 | F23: -6850.82692 | G23: 15036 | H23: -0.3606294787 | I23: -6.772815992 | J23: 8.602815992 | K23: ='T-77'!K33 -> 9.47725 | L23: N1 O N2
A24: 15037 | B24: 4.8 | C24: 1.48461 | D24: ='T-77'!E34 -> -6852.91393 | E24: ='T-77'!F34 -> 6.94625 | F24: -6850.38293 | G24: 15037 | H24: -0.04114168271 | I24: 3.818565184 | J24: 0.9814348157 | K24: ='T-77'!K34 -> 9.47725 | L24: N1 O N2
A25: 15038 | B25: 0.37 | C25: 1.69391 | D25: ='T-77'!E35 -> -6899.69256 | E25: ='T-77'!F35 -> -40.04168 | F25: -6850.17363 | G25: 15038 | H25: 0.353863625 | I25: 8.811416555 | J25: -8.441416555 | K25: ='T-77'!K35 -> 9.47725 | L25: N1 O N2
A26: 15040 | B26: 0.57 | C26: 1.25415 | D26: ='T-77'!E36 -> -6938.5225 | E26: ='T-77'!F36 -> -78.43186 | F26: -6850.61339 | G26: 15040 | H26: -0.09428036185 | I26: -1.679057974 | J26: 2.249057974 | K26: ='T-77'!K36 -> 9.47725 | L26: N1 O N2
A27: 15041 | B27: 0.43 | C27: 1.71217 | D27: ='T-77'!E37 -> -6822.40634 | E27: ='T-77'!F37 -> 37.22628 | F27: -6850.15537 | G27: 15041 | H27: 0.3696084289 | I27: 9.247008844 | J27: -8.817008844 | K27: ='T-77'!K37 -> 9.47725 | L27: N1 O N2
A28: 15042 | B28: 23.6 | C28: 1.57319 | D28: ='T-77'!E38 -> -6898.68482 | E28: ='T-77'!F38 -> -38.91322 | F28: -6850.29435 | G28: 15042 | H28: -0.7406564421 | I28: 5.93164103 | J28: 17.66835897 | K28: ='T-77'!K38 -> 9.47725 | L28: N1 O N2
A29: 15045 | B29: 13.2 | C29: 0.79469 | D29: ='T-77'!E39 -> -6937.27999 | E29: ='T-77'!F39 -> -76.72989 | F29: -6851.07285 | G29: 15045 | H29: -1.083189128 | I29: -12.63947599 | J29: 25.83947599 | K29: ='T-77'!K39 -> 9.47725 | L29: N1 O N2
A30: 15046 | B30: 1.71 | C30: 0.48556 | D30: ='T-77'!E40 -> -6938.40591 | E30: ='T-77'!F40 -> -77.54668 | F30: -6851.38198 | G30: 15046 | H30: -0.9106590866 | I30: -20.01377195 | J30: 21.72377195 | K30: ='T-77'!K40 -> 9.47725 | L30: N1 O N2
A31: 15049 | B31: 6.94 | C31: 0.41132 | D31: ='T-77'!E41 -> -7009.28078 | E31: ='T-77'!F41 -> -148.34731 | F31: -6851.45622 | G31: 15049 | H31: -1.204140341 | I31: -21.7847671 | J31: 28.7247671 | K31: ='T-77'!K41 -> 9.47725 | L31: N1 O N2
A32: 15050 | B32: 24.8 | C32: 0.11746 | D32: ='T-77'!E42 -> -7011.49096 | E32: ='T-77'!F42 -> -150.26363 | F32: -6851.75008 | G32: 15050 | H32: -2.246690363 | I32: -28.79479722 | J32: 53.59479722 | K32: ='T-77'!K42 -> 9.47725 | L32: N1 O N2
A33: 15052 | B33: 52.6 | C33: 5.07506 | D33: ='T-77'!E43 -> -6839.9631 | E33: ='T-77'!F43 -> 16.30663 | F33: -6846.79248 | G33: 15052 | H33: 1.545535472 | I33: 89.46874772 | J33: -36.86874772 | K33: ='T-77'!K43 -> 9.47725 | L33: N1 O N2
A34: 15054 | B34: 100 | C34: 2.29654 | D34: ='T-77'!E44 -> -6852.82785 | E34: ='T-77'!F44 -> 6.2204 | F34: -6849.571 | G34: 15054 | H34: -3.2199894 | I34: 23.18715483 | J34: 76.81284517 | K34: ='T-77'!K44 -> 9.47725 | L34: N1 O N2
A35: 15055 | B35: 24.7 | C35: =F35-MIN(F$3:F$54) -> 2.3829 | D35: ='T-77'!E45 -> -6890.07861 | E35: ='T-77'!F45 -> -31.11672 | F35: =D35-E35+K35 -> -6849.48464 | G35: 15055 | H35: =IF(C35<>"",(C35-(L$61*B35+M$61)),"") -> 0.02294163049 | I35: =IF(C35<>"", (C35-M$61)/L$61,"") -> 25.24727258 | J35: =IF(C35<>"", B35-(C35-M$61)/L$61,"") -> -0.5472725812 | K35: ='T-77'!K45 -> 9.47725 | L35: N1 O N2
A36: 15056 | B36: 29.5 | C36: 0.70399 | D36: ='T-77'!E46 -> -6853.5888 | E36: ='T-77'!F46 -> 7.052 | F36: -6851.16355 | G36: 15056 | H36: -1.857184053 | I36: -14.80312444 | J36: 44.30312444 | K36: ='T-77'!K46 -> 9.47725 | L36: N1 O N2
A37: 15057 | B37: 35 | C37: 4.13084 | D37: ='T-77'!E47 -> -6884.77607 | E37: ='T-77'!F47 -> -25.5335 | F37: -6847.7367 | G37: 15057 | H37: 1.33910631 | I37: 66.94438021 | J37: -31.94438021 | K37: ='T-77'!K47 -> 11.50587 | L37: N1 O N2 -O-
A38: 15216 | B38: 6.96 | C38: 1.64785 | D38: ='T-77'!E48 -> -6899.20674 | E38: ='T-77'!F48 -> -39.5098 | F38: -6850.21969 | G38: 15216 | H38: 0.03155125983 | I38: 7.712655284 | J38: -0.7526552838 | K38: ='T-77'!K48 -> 9.47725 | L38: N1 O N2
A39: 15217 | B39: 1.37 | C39: 2.167 | D39: ='T-77'!E49 -> -6859.84217 | E39: ='T-77'!F49 -> -0.66438 | F39: -6849.70054 | G39: 15217 | H39: 0.7850336909 | I39: 20.09697821 | J39: -18.72697821 | K39: ='T-77'!K49 -> 9.47725 | L39: N1 O N2
A40: 16561 | B40: 76 | C40: 8.99521 | D40: ='T-77'!E60 -> -6832.73504 | E40: ='T-77'!F60 -> 27.4045 | F40: -6842.87233 | G40: 16561 | H40: 4.484759016 | I40: 182.9839236 | J40: -106.9839236 | K40: ='T-77'!K60 -> 17.26721 | L40: 3N1 O N2
A41: 16570 | B41: 38 | C41: 3.70987 | D41: ='T-77'!E61 -> -6882.74091 | E41: ='T-77'!F61 -> -18.6543 | F41: -6848.15767 | G41: 16570 | H41: 0.7923765082 | I41: 56.90214111 | J41: -18.90214111 | K41: ='T-77'!K61 -> 15.92894 | L41: N1 O N2N3
A42: 16574 | B42: 65.9 | C42: 7.98688 | D42: ='T-77'!E62 -> -6813.27924 | E42: ='T-77'!F62 -> 40.07867 | F42: -6843.88066 | G42: 16574 | H42: 3.899820349 | I42: 158.930212 | J42: -93.03021203 | K42: ='T-77'!K62 -> 9.47725 | L42: N1 O N2
A43: 16576 | B43: 100 | C43: 0.26554 | D43: ='T-77'!E63 -> -6863.96037 | E43: ='T-77'!F63 -> -2.88112 | F43: -6851.602 | G43: 16576 | H43: -5.2509894 | I43: -25.26234892 | J43: 125.2623489 | K43: ='T-77'!K63 -> 9.47725 | L43: N1 O N2
A44: 16769 | B44: 9 | C44: 2.36538 | D44: ='T-77'!E64 -> -6823.24418 | E44: ='T-77'!F64 -> 35.73523 | F44: -6849.50216 | G44: 16769 | H44: 0.6635645944 | I44: 24.82933299 | J44: -15.82933299 | K44: ='T-77'!K64 -> 9.47725 | L44: N1 O N2
A45: 18474 | B45: 100 | C45: 2.44899 | D45: ='T-77'!E69 -> -6939.38478 | E45: ='T-77'!F69 -> -80.48898 | F45: -6849.41855 | G45: 18474 | H45: -3.0675394 | I45: 26.82384949 | J45: 73.17615051 | K45: ='T-77'!K69 -> 9.47725 | L45: N1 O N2
A46: 18475 | B46: 1.24 | C46: 2.07709 | D46: ='T-77'!E70 -> -6862.65877 | E46: ='T-77'!F70 -> -3.39107 | F46: -6849.79045 | G46: 18475 | H46: 0.7005732824 | I46: 17.95217522 | J46: -16.71217522 | K46: ='T-77'!K70 -> 9.47725 | L46: N1 O N2
A47: 18807 | B47: 7.78 | C47: 0.69831 | D47: ='T-77'!E71 -> -6894.83101 | E47: ='T-77'!F71 -> -34.18453 | F47: -6851.16923 | G47: 18807 | H47: -0.9523630861 | I47: -14.93862083 | J47: 22.71862083 | K47: ='T-77'!K71 -> 9.47725 | L47: N1 O N2
A48: 18808 | B48: 100 | C48: 6.19022 | D48: ='T-77'!E72 -> -6932.04263 | E48: ='T-77'!F72 -> -72.83082 | F48: -6845.67732 | G48: 18808 | H48: 0.6736905995 | I48: 116.0708888 | J48: -16.07088884 | K48: ='T-77'!K72 -> 13.53449 | L48: N1 O N2 2-O-
A49: 19152 | B49: 100 | C49: 7.66629 | D49: ='T-77'!E73 -> -7049.91848 | E49: ='T-77'!F73 -> -196.23998 | F49: -6844.20125 | G49: 19152 | H49: 2.1497606 | I49: 151.2825378 | J49: -51.28253778 | K49: ='T-77'!K73 -> 9.47725 | L49: N1 O N2
A50: 19154 | B50: 6.78 | C50: 0.02411 | D50: ='T-77'!E74 -> -6857.57033 | E50: ='T-77'!F74 -> 3.75035 | F50: -6851.84343 | G50: 19154 | H50: -1.584643152 | I50: -31.02166142 | J50: 37.80166142 | K50: ='T-77'!K74 -> 9.47725 | L50: N1 O N2
A51: 19183 | B51: 1.63 | C51: 2.24978 | D51: ='T-77'!E75 -> -6947.76775 | E51: ='T-77'!F75 -> -88.67274 | F51: -6849.61776 | G51: 19183 | H51: 0.8569145081 | I51: 22.07169506 | J51: -20.44169506 | K51: ='T-77'!K75 -> 9.47725 | L51: N1 O N2
A52: 19184 | B52: 3.81 | C52: 2.56775 | D52: ='T-77'!E76 -> -6949.25778 | E52: ='T-77'!F76 -> -90.48074 | F52: -6849.29979 | G52: 19184 | H52: 1.083499052 | I52: 29.65686922 | J52: -25.84686922 | K52: ='T-77'!K76 -> 9.47725 | L52: N1 O N2
A53: 19185 | B53: 2.21 | C53: 0.24343 | D53: ='T-77'!E77 -> -6900.68315 | E53: ='T-77'!F77 -> -39.58179 | F53: -6851.62411 | G53: 19185 | H53: -1.173749054 | I53: -25.78978295 | J53: 27.99978295 | K53: ='T-77'!K77 -> 9.47725 | L53: N1 O N2
A54: 19370 | B54: 0.72 | C54: 1.92723 | D54: ='T-77'!E79 -> -6907.88999 | E54: ='T-77'!F79 -> -48.47243 | F54: -6849.94031 | G54: 19370 | H54: 0.5725116481 | I54: 14.37726501 | J54: -13.65726501 | K54: ='T-77'!K79 -> 9.47725 | L54: N1 O N2
H56: kcal mol-1 | J56: IC50 | L56: Results for Optimized globule
F57: AUE: | H57: =AVERAGE(ABS(H3:H54)) -> 1.212213905 | J57: =AVERAGE(ABS(J3:J54)) -> 28.91736197
C58: =MAX(C3:C54) -> 9.26355 | F58: Max: | H58: =MAX(H3:H54) -> 4.484759016 | J58: =MAX(J3:J54) -> 125.2623489
F59: Min: | H59: =MIN(H3:H54) -> -5.2509894 | J59: =MIN(J3:J54) -> -106.9839236
I60: Ranges | L60: SLOPE | M60: INTERCEPT | N60: CORREL (Correlation) i.e.: R2
F61: Max-Min: | H61: =H58-H59 -> 9.735748416 | J61: =J58-J59 -> 232.2462725 | L61: =SLOPE(C$3:C$54,B$3:B$54) -> 0.04191993401 | M61: =INTERCEPT(C$3:C$54,B$3:B$54) -> 1.324535999 | N61: =(CORREL(C$3:C$54,B$3:B$54))^2 -> 0.4142885424

Sheet 48 Single-ring only
A1: 48 Ligands with one ring, unconstrained optimization
A2: ID | B2: Assay | C2: Relative Binding Energy | D2: Proteins plus ligands | E2: Ligands on their own | F2: Binding energy | G2: ID | H2: Distance in kcal/mol from trendline | I2: Calc'd IC50 | J2: Dist. in IC50 from trend line | K2: Corr. for desolv. | L2: Atoms desolvated | M2: No. of ligands used
A3: 07756 | B3: 0.73 | C3: =F3-MIN(F$3:F$54) -> 1.2713 | D3: ='T-77'!E3 -> -6854.03989 | E3: ='T-77'!F3 -> 6.0336 | F3: =D3-E3+K3 -> -6850.59624 | G3: 07756 | H3: =IF(C3<>"",(C3-(L$62*B3+M$62)),"") -> 0.2376756689 | I3: =IF(C3<>"", (C3-M$62)/L$62,"") -> 4.145403829 | J3: =IF(C3<>"", B3-(C3-M$62)/L$62,"") -> -3.415403829 | K3: ='T-77'!K3 -> 9.47725 | L3: N1 O N2 | M3: 1
A4: 10618 | B4: 0.56 | C4: 0.28501 | D4: ='T-77'!E4 -> -6895.62374 | E4: ='T-77'!F4 -> -34.56396 | F4: -6851.58253 | G4: 10618 | H4: -0.7367841448 | I4: -10.02760201 | J4: 10.58760201 | K4: ='T-77'!K4 -> 9.47725 | L4: N1 O N2 | M4: =IF(C4<>"",(M3+1),M3) -> 2
A5: 11616 | B5: 1.2 | C5: 0 | D5: ='T-77'!E5 -> -6896.44163 | E5: ='T-77'!F5 -> -35.09684 | F5: -6851.86754 | G5: 11616 | H5: -1.066331317 | I5: -14.12320106 | J5: 15.32320106 | K5: ='T-77'!K5 -> 9.47725 | L5: N1 O N2 | M5: =IF(C5<>"",(M4+1),M4) -> 3
A6: 11628 | B6: 9.38 | C6: 1.83836 | D6: ='T-77'!E6 -> -6785.65861 | E6: ='T-77'!F6 -> 73.84782 | F6: -6850.02918 | G6: 11628 | H6: 0.2027879523 | I6: 12.29406669 | J6: -2.914066686 | K6: ='T-77'!K6 -> 9.47725 | L6: N1 O N2 | M6: 4
A7: 12049 | B7: 67.1 | C7: 4.29181 | D7: ='T-77'!E7 -> -6844.6 | E7: ='T-77'!F7 -> 16.34796 | F7: -6847.57573 | G7: 12049 | H7: -1.360458256 | I7: 47.5501893 | J7: 19.5498107 | K7: ='T-77'!K7 -> 13.37223 | L7: 2N1 O N2 | M7: 5
A8: 12808 | B8: 7.94 | C8: 3.3377 | D8: ='T-77'!E8 -> -6842.31952 | E8: ='T-77'!F8 -> 15.68757 | F8: -6848.52984 | G8: 12808 | H8: 1.80233659 | I8: 33.83961067 | J8: -25.89961067 | K8: ='T-77'!K8 -> 9.47725 | L8: N1 O N2 | M8: 6
A9: 12809 | B9: 7.02 | C9: 1.5669 | D9: ='T-77'!E9 -> -6844.25169 | E9: ='T-77'!F9 -> 15.5262 | F9: -6850.30064 | G9: 12809 | H9: 0.09555877442 | I9: 8.393181384 | J9: -1.373181384 | K9: ='T-77'!K9 -> 9.47725 | L9: N1 O N2 | M9: 7
A10: 12812 | B10: 34.4 | C10: 2.77883 | D10: ='T-77'!E10 -> -6848.03271 | E10: ='T-77'!F10 -> 7.3251 | F10: -6849.08871 | G10: 12812 | H10: -0.5978671191 | I10: 25.80863826 | J10: 8.591361738 | K10: ='T-77'!K10 -> 6.2691 | L10: N1 O | M10: 8
A11: 12814 | B11: 100 | D11: ='T-77'!E11 -> -6860.95962 | E11: ='T-77'!F11 -> -2.0541 | F11: -6849.42827 | G11: 12814 | K11: ='T-77'!K11 -> 9.47725 | L11: N1 O N2 | M11: 8
A12: 12963 | B12: 4.27 | C12: 1.963 | D12: ='T-77'!E12 -> -6842.33754 | E12: ='T-77'!F12 -> 17.04425 | F12: -6849.90454 | G12: 12963 | H12: =IF(C12<>"",(C12-(L$62*B12+M$62)),"") -> 0.6830294358 | I12: =IF(C12<>"", (C12-M$62)/L$62,"") -> 14.08514583 | J12: =IF(C12<>"", B12-(C12-M$62)/L$62,"") -> -9.815145829 | K12: ='T-77'!K12 -> 9.47725 | L12: N1 O N2 | M12: 9
A13: 13222 | B13: 40.7 | C13: 5.46094 | D13: ='T-77'!E14 -> -6842.00267 | E13: ='T-77'!F14 -> 13.88118 | F13: -6846.4066 | G13: 13222 | H13: 1.645830093 | I13: 64.35060937 | J13: -23.65060937 | K13: ='T-77'!K14 -> 9.47725 | L13: N1 O N2 | M13: 10
A14: 15025 | B14: 14 | C14: 2.02214 | D14: ='T-77'!E24 -> -6843.12584 | E14: ='T-77'!F24 -> 16.19681 | F14: -6849.8454 | G14: 15025 | H14: 0.0650652413 | I14: 14.93498874 | J14: -0.9349887403 | K14: ='T-77'!K24 -> 9.47725 | L14: N1 O N2 | M14: 11
A15: 15026 | B15: 23.7 | C15: 2.48488 | D15: ='T-77'!E25 -> -6852.67967 | E15: ='T-77'!F25 -> 6.18024 | F15: -6849.38266 | G15: 15026 | H15: -0.1472112732 | I15: 21.58457124 | J15: 2.115428763 | K15: ='T-77'!K25 -> 9.47725 | L15: N1 O N2 | M15: 12
A16: 15027 | B16: 58.4 | C16: 4.51484 | D16: ='T-77'!E26 -> -6851.76568 | E16: ='T-77'!F26 -> 5.06427 | F16: -6847.3527 | G16: 15027 | H16: -0.5320010726 | I16: 50.75513459 | J16: 7.644865411 | K16: ='T-77'!K26 -> 9.47725 | L16: N1 O N2 | M16: 13
A17: 15028 | B17: 72.5 | C17: 4.28634 | D17: ='T-77'!E27 -> -6884.26973 | E17: ='T-77'!F27 -> -25.18266 | F17: -6847.5812 | G17: 15028 | H17: -1.741710645 | I17: 47.47158529 | J17: 25.02841471 | K17: ='T-77'!K27 -> 11.50587 | L17: N1 O N2 -O- | M17: 14
A18: 15029 | B18: 100 | C18: 9.26355 | D18: ='T-77'!E28 -> -6807.32849 | E18: ='T-77'!F28 -> 44.75275 | F18: -6842.60399 | G18: 15029 | H18: 1.321792741 | I18: 118.9941865 | J18: -18.99418654 | K18: ='T-77'!K28 -> 9.47725 | L18: N1 O N2 | M18: 15
A19: 15030 | B19: 0.35 | C19: 1.13629 | D19: ='T-77'!E29 -> -6899.77541 | E19: ='T-77'!F29 -> -39.56691 | F19: -6850.73125 | G19: 15030 | H19: 0.1291096148 | I19: 2.205307591 | J19: -1.855307591 | K19: ='T-77'!K29 -> 9.47725 | L19: N1 O N2 | M19: 16
A20: 15031 | B20: 4.97 | C20: 0.31776 | D20: ='T-77'!E30 -> -6892.96925 | E20: ='T-77'!F30 -> -31.94222 | F20: -6851.54978 | G20: 15031 | H20: -1.010923096 | I20: -9.556983892 | J20: 14.52698389 | K20: ='T-77'!K30 -> 9.47725 | L20: N1 O N2 | M20: 17
A21: 15034 | B21: 1.85 | C21: 0.81865 | D21: ='T-77'!E31 -> -6892.34074 | E21: ='T-77'!F31 -> -31.8146 | F21: -6851.04889 | G21: 15034 | H21: -0.2929143823 | I21: -2.359185178 | J21: 4.209185178 | K21: ='T-77'!K31 -> 9.47725 | L21: N1 O N2 | M21: 18
A22: 15035 | B22: 30.5 | C22: 4.17142 | D22: ='T-77'!E32 -> -6883.66784 | E22: ='T-77'!F32 -> -24.46585 | F22: -6847.69612 | G22: 15035 | H22: 1.066121273 | I22: 45.82018273 | J22: -15.32018273 | K22: ='T-77'!K32 -> 11.50587 | L22: N1 O N2 -O- | M22: 19
A23: 15036 | B23: 1.83 | C23: 1.04062 | D23: ='T-77'!E33 -> -6813.62423 | E23: ='T-77'!F33 -> 46.67994 | F23: -6850.82692 | G23: 15036 | H23: -0.06955259565 | I23: 0.8305278934 | J23: 0.9994721066 | K23: ='T-77'!K33 -> 9.47725 | L23: N1 O N2 | M23: 20
A24: 15037 | B24: 4.8 | C24: 1.48461 | D24: ='T-77'!E34 -> -6852.91393 | E24: ='T-77'!F34 -> 6.94625 | F24: -6850.38293 | G24: 15037 | H24: 0.1677570901 | I24: 7.210672538 | J24: -2.410672538 | K24: ='T-77'!K34 -> 9.47725 | L24: N1 O N2 | M24: 21
A25: 15038 | B25: 0.37 | C25: 1.69391 | D25: ='T-77'!E35 -> -6899.69256 | E25: ='T-77'!F35 -> -40.04168 | F25: -6850.17363 | G25: 15038 | H25: 0.6853378282 | I25: 10.21831747 | J25: -9.848317471 | K25: ='T-77'!K35 -> 9.47725 | L25: N1 O N2 | M25: 22
A26: 15040 | B26: 0.57 | C26: 1.25415 | D26: ='T-77'!E36 -> -6938.5225 | E26: ='T-77'!F36 -> -78.43186 | F26: -6850.61339 | G26: 15040 | H26: 0.2316599619 | I26: 3.898958007 | J26: -3.328958007 | K26: ='T-77'!K36 -> 9.47725 | L26: N1 O N2 | M26: 23
A27: 15041 | B27: 0.43 | C27: 1.71217 | D27: ='T-77'!E37 -> -6822.40634 | E27: ='T-77'!F37 -> 37.22628 | F27: -6850.15537 | G27: 15041 | H27: 0.6994224683 | I27: 10.48071401 | J27: -10.05071401 | K27: ='T-77'!K37 -> 9.47725 | L27: N1 O N2 | M27: 24
A28: 15042 | B28: 23.6 | C28: 1.57319 | D28: ='T-77'!E38 -> -6898.68482 | E28: ='T-77'!F38 -> -38.91322 | F28: -6850.29435 | G28: 15042 | H28: -1.05194234 | I28: 8.483568803 | J28: 15.1164312 | K28: ='T-77'!K38 -> 9.47725 | L28: N1 O N2 | M28: 25
A29: 15045 | B29: 13.2 | C29: 0.79469 | D29: ='T-77'!E39 -> -6937.27999 | E29: ='T-77'!F39 -> -76.72989 | F29: -6851.07285 | G29: 15045 | H29: -1.106713294 | I29: -2.703490829 | J29: 15.90349083 | K29: ='T-77'!K39 -> 9.47725 | L29: N1 O N2 | M29: 26
A30: 15046 | B30: 1.71 | C30: 0.48556 | D30: ='T-77'!E40 -> -6938.40591 | E30: ='T-77'!F40 -> -77.54668 | F30: -6851.38198 | G30: 15046 | H30: -0.6162618759 | I30: -7.145694739 | J30: 8.855694739 | K30: ='T-77'!K40 -> 9.47725 | L30: N1 O N2 | M30: 27
A31: 15049 | B31: 6.94 | C31: 0.41132 | D31: ='T-77'!E41 -> -7009.28078 | E31: ='T-77'!F41 -> -148.34731 | F31: -6851.45622 | G31: 15049 | H31: -1.054454079 | I31: -8.212524934 | J31: 15.15252493 | K31: ='T-77'!K41 -> 9.47725 | L31: N1 O N2 | M31: 28
A32: 15050 | B32: 24.8 | C32: 0.11746 | D32: ='T-77'!E42 -> -7011.49096 | E32: ='T-77'!F42 -> -150.26363 | F32: -6851.75008 | G32: 15050 | H32: -2.591179538 | I32: -12.43529866 | J32: 37.23529866 | K32: ='T-77'!K42 -> 9.47725 | L32: N1 O N2 | M32: 29
A33: 15052 | B33: 52.6 | C33: 5.07506 | D33: ='T-77'!E43 -> -6839.9631 | E33: ='T-77'!F43 -> 16.30663 | F33: -6846.79248 | G33: 15052 | H33: 0.4318370495 | I33: 58.80550652 | J33: -6.205506518 | K33: ='T-77'!K43 -> 9.47725 | L33: N1 O N2 | M33: 30
A34: 15054 | B34: 100 | D34: ='T-77'!E44 -> -6852.82785 | E34: ='T-77'!F44 -> 6.2204 | F34: -6849.571 | G34: 15054 | K34: ='T-77'!K44 -> 9.47725 | L34: N1 O N2 | M34: 30
A35: 15055 | B35: 24.7 | C35: 2.3829 | D35: ='T-77'!E45 -> -6890.07861 | E35: ='T-77'!F45 -> -31.11672 | F35: -6849.48464 | G35: 15055 | H35: =IF(C35<>"",(C35-(L$62*B35+M$62)),"") -> -0.3187806046 | I35: =IF(C35<>"", (C35-M$62)/L$62,"") -> 20.11911672 | J35: =IF(C35<>"", B35-(C35-M$62)/L$62,"") -> 4.58088328 | K35: ='T-77'!K45 -> 9.47725 | L35: N1 O N2 | M35: 31
A36: 15056 | B36: 29.5 | C36: 0.70399 | D36: ='T-77'!E46 -> -6853.5888 | E36: ='T-77'!F46 -> 7.052 | F36: -6851.16355 | G36: 15056 | H36: -2.331719395 | I36: -4.006851533 | J36: 33.50685153 | K36: ='T-77'!K46 -> 9.47725 | L36: N1 O N2 | M36: 32
A37: 15057 | B37: 35 | C37: 4.13084 | D37: ='T-77'!E47 -> -6884.77607 | E37: ='T-77'!F47 -> -25.5335 | F37: -6847.7367 | G37: 15057 | H37: 0.712389282 | I37: 45.23704737 | J37: -10.23704737 | K37: ='T-77'!K47 -> 11.50587 | L37: N1 O N2 -O- | M37: 33
A38: 15216 | B38: 6.96 | C38: 1.64785 | D38: ='T-77'!E48 -> -6899.20674 | E38: ='T-77'!F48 -> -39.5098 | F38: -6850.21969 | G38: 15216 | H38: 0.1806841343 | I38: 9.556434406 | J38: -2.596434406 | K38: ='T-77'!K48 -> 9.47725 | L38: N1 O N2 | M38: 34
A39: 15217 | B39: 1.37 | C39: 2.167 | D39: ='T-77'!E49 -> -6859.84217 | E39: ='T-77'!F49 -> -0.66438 | F39: -6849.70054 | G39: 15217 | H39: 1.088838497 | I39: 17.01662966 | J39: -15.64662966 | K39: ='T-77'!K49 -> 9.47725 | L39: N1 O N2 | M39: 35
A40: 16561 | B40: 76 | C40: 8.99521 | D40: ='T-77'!E60 -> -6832.73504 | E40: ='T-77'!F60 -> 27.4045 | F40: -6842.87233 | G40: 16561 | H40: 2.723596695 | I40: 115.1381357 | J40: -39.13813569 | K40: ='T-77'!K60 -> 17.26721 | L40: 3N1 O N2 | M40: 36
A41: 16570 | B41: 38 | C41: 3.70987 | D41: ='T-77'!E61 -> -6882.74091 | E41: ='T-77'!F61 -> -18.6543 | F41: -6848.15767 | G41: 16570 | H41: 0.08265128785 | I41: 39.18770056 | J41: -1.18770056 | K41: ='T-77'!K61 -> 15.92894 | L41: N1 O N2N3 | M41: 37
A42: 16574 | B42: 65.9 | C42: 7.98688 | D42: ='T-77'!E62 -> -6813.27924 | E42: ='T-77'!F62 -> 40.07867 | F42: -6843.88066 | G42: 16574 | H42: 2.418118942 | I42: 100.6484146 | J42: -34.74841464 | K42: ='T-77'!K62 -> 9.47725 | L42: N1 O N2 | M42: 38
A43: 16576 | B43: 100 | D43: ='T-77'!E63 -> -6863.96037 | E43: ='T-77'!F63 -> -2.88112 | F43: -6851.602 | G43: 16576 | K43: ='T-77'!K63 -> 9.47725 | L43: N1 O N2 | M43: 38
A44: 16769 | B44: 9 | C44: 2.36538 | D44: ='T-77'!E64 -> -6823.24418 | E44: ='T-77'!F64 -> 35.73523 | F44: -6849.50216 | G44: 16769 | H44: =IF(C44<>"",(C44-(L$62*B44+M$62)),"") -> 0.7562518983 | I44: =IF(C44<>"", (C44-M$62)/L$62,"") -> 19.86735399 | J44: =IF(C44<>"", B44-(C44-M$62)/L$62,"") -> -10.86735399 | K44: ='T-77'!K64 -> 9.47725 | L44: N1 O N2 | M44: 39
A45: 18474 | B45: 100 | D45: ='T-77'!E69 -> -6939.38478 | E45: ='T-77'!F69 -> -80.48898 | F45: -6849.41855 | G45: 18474 | K45: ='T-77'!K69 -> 9.47725 | L45: N1 O N2 | M45: 39
A46: 18475 | B46: 1.24 | C46: 2.07709 | D46: ='T-77'!E70 -> -6862.65877 | E46: ='T-77'!F70 -> -3.39107 | F46: -6849.79045 | G46: 18475 | H46: =IF(C46<>"",(C46-(L$62*B46+M$62)),"") -> 1.00797511 | I46: =IF(C46<>"", (C46-M$62)/L$62,"") -> 15.72462127 | J46: =IF(C46<>"", B46-(C46-M$62)/L$62,"") -> -14.48462127 | K46: ='T-77'!K70 -> 9.47725 | L46: N1 O N2 | M46: 40
A47: 18807 | B47: 7.78 | C47: 0.69831 | D47: ='T-77'!E71 -> -6894.83101 | E47: ='T-77'!F71 -> -34.18453 | F47: -6851.16923 | G47: 18807 | H47: -0.8259191174 | I47: -4.08847324 | J47: 11.86847324 | K47: ='T-77'!K71 -> 9.47725 | L47: N1 O N2 | M47: 41
A48: 18808 | B48: 100 | C48: 6.19022 | D48: ='T-77'!E72 -> -6932.04263 | E48: ='T-77'!F72 -> -72.83082 | F48: -6845.67732 | G48: 18808 | H48: -1.751537259 | I48: 74.83037668 | J48: 25.16962332 | K48: ='T-77'!K72 -> 13.53449 | L48: N1 O N2 2-O- | M48: 42
A49: 19152 | B49: 100 | C49: 7.66629 | D49: ='T-77'!E73 -> -7049.91848 | E49: ='T-77'!F73 -> -196.23998 | F49: -6844.20125 | G49: 19152 | H49: -0.2754672585 | I49: 96.04153032 | J49: 3.958469682 | K49: ='T-77'!K73 -> 9.47725 | L49: N1 O N2 | M49: 43
A50: 19154 | B50: 6.78 | C50: 0.02411 | D50: ='T-77'!E74 -> -6857.57033 | E50: ='T-77'!F74 -> 3.75035 | F50: -6851.84343 | G50: 19154 | H50: -1.430529786 | I50: -13.77673991 | J50: 20.55673991 | K50: ='T-77'!K74 -> 9.47725 | L50: N1 O N2 | M50: 44
A51: 19183 | B51: 1.63 | C51: 2.24978 | D51: ='T-77'!E75 -> -6947.76775 | E51: ='T-77'!F75 -> -88.67274 | F51: -6849.61776 | G51: 19183 | H51: 1.153525271 | I51: 18.20617982 | J51: -16.57617982 | K51: ='T-77'!K75 -> 9.47725 | L51: N1 O N2 | M51: 45
A52: 19184 | B52: 3.81 | C52: 2.56775 | D52: ='T-77'!E76 -> -6949.25778 | E52: ='T-77'!F76 -> -90.48074 | F52: -6849.29979 | G52: 19184 | H52: 1.319790528 | I52: 22.77541469 | J52: -18.96541469 | K52: ='T-77'!K76 -> 9.47725 | L52: N1 O N2 | M52: 46
A53: 19185 | B53: 2.21 | C53: 0.24343 | D53: ='T-77'!E77 -> -6900.68315 | E53: ='T-77'!F77 -> -39.58179 | F53: -6851.62411 | G53: 19185 | H53: -0.8931865416 | I53: -10.62510739 | J53: 12.83510739 | K53: ='T-77'!K77 -> 9.47725 | L53: N1 O N2 | M53: 47
A54: 19370 | B54: 0.72 | C54: 1.92723 | D54: ='T-77'!E79 -> -6907.88999 | E54: ='T-77'!F79 -> -48.47243 | F54: -6849.94031 | G54: 19370 | H54: 0.8943015622 | I54: 13.57113026 | J54: -12.85113026 | K54: ='T-77'!K79 -> 9.47725 | L54: N1 O N2 | M54: 48
H56: kcal mol-1 | J56: IC50 | L56: Results for Optimized globule
F57: AUE: | H57: =AVERAGE(ABS(H3:H54)) -> 0.8385940381 | J57: =AVERAGE(ABS(J3:J54)) -> 12.05061209
C58: =MAX(C3:C54) -> 9.26355 | F58: Max: | H58: =MAX(H3:H54) -> 2.723596695 | J58: =MAX(J3:J54) -> 37.23529866
F59: Min: | H59: =MIN(H3:H54) -> -2.591179538 | J59: =MIN(J3:J54) -> -39.13813569
I60: Ranges
F61: Max-Min: | H61: =H58-H59 -> 5.314776233 | J61: =J58-J59 -> 76.37343435 | L61: SLOPE | M61: INTERCEPT | N61: CORREL (Correlation) i.e.: R2
L62: =SLOPE(C$3:C$54,B$3:B$54) -> 0.06958933139 | M62: =INTERCEPT(C$3:C$54,B$3:B$54) -> 0.9828241192 | N62: =(CORREL(C$3:C$54,B$3:B$54))^2 -> 0.7591440589

Sheet 25 Double-ring only
A1: 25 Double-headed ligands, unconstrained optimization
B2: ID | C2: Assay | D2: Relative Binding Energy | E2: Proteins plus ligands | F2: Ligands on their own | G2: Binding energy | H2: Distance in kcal/mol from trendline | I2: Calc'd IC50 | J2: Dist. in IC50 from trend line | K2: Corr. for desolv. | L2: Atoms desolvated | M2: Correction for methoxy - amide H interaction | N2: No. of ligands used
A3: 13204 | B3: R-13204 | C3: 100 | D3: =MIN(G3-MIN('T-77'!G$3:'T-77'!G$79),90) -> 15.79798 | E3: ='T-77'!E13 -> -6915.90416 | F3: ='T-77'!F13 -> -66.30011 | G3: =E3-F3+K3 -> -6836.06956 | H3: =IF(D3<>"",(D3-(L$36*C3+M$36)),"") -> 2.34632612 | I3: =IF(D3<>"", (D3-M$36)/L$36,"") -> 128.2745424 | J3: =IF(D3<>"", C3-(D3-M$36)/L$36,"") -> -28.27454242 | K3: ='T-77'!K13 -> 13.53449 | L3: N1 O N2 2-O- | N3: 1 | O3: CORREL: | P3: =(CORREL($D$3:$D$27,$C$3:$C$27))^2 -> 0.5803425163
A4: 13226 | B4: S-13226 | C4: 19.5 | D4: =G4-MIN('T-77'!G$3:'T-77'!G$79) -> 8.60782 | E4: ='T-77'!E15 -> -6887.44128 | F4: ='T-77'!F15 -> -32.67569 | G4: =E4-F4+K4+M4 -> -6843.25972 | H4: 1.836353895 | I4: 41.6290918 | J4: -22.1290918 | K4: ='T-77'!K15 -> 11.50587 | L4: N1 O N2 -O- | N4: =IF(D4<>"",(N3+1),N3) -> 2 | O4: AUE: | P4: =AVERAGE(ABS($H$3:$H$7)) -> 1.466294166
A5: 13291 | B5: S-13291 | C5: 0.68 | D5: =G5-MIN('T-77'!G$3:'T-77'!G$79) -> 6.78433 | E5: ='T-77'!E16 -> -6891.71902 | F5: ='T-77'!F16 -> -35.12994 | G5: -6845.08321 | H5: 1.574617111 | I5: 19.65501713 | J5: -18.97501713 | K5: ='T-77'!K16 -> 11.50587 | L5: N1 O N2 -O- | N5: 3
A6: 13294 | B6: R-13294 | C6: 1.71 | D6: =G6-MIN('T-77'!G$3:'T-77'!G$79) -> 6.3754 | E6: ='T-77'!E17 -> -6890.31568 | F6: ='T-77'!F17 -> -35.34629 | G6: -6845.49214 | H6: 1.080213901 | I6: 14.72718185 | J6: -13.01718185 | K6: ='T-77'!K17 -> 9.47725 | L6: N1 O N2 | N6: 4
A7: 13813 | B7: S-13813 | C7: 20.5 | D7: =G7-MIN('T-77'!G$3:'T-77'!G$79) -> 6.36049 | E7: ='T-77'!E18 -> -6918.70929 | F7: ='T-77'!F18 -> -60.51684 | G7: -6845.50705 | H7: -0.4939598044 | I7: 14.54750801 | J7: 5.952491995 | K7: ='T-77'!K18 -> 12.6854 | L7: N1 O 2N2 | N7: 5
A8: 13943 | B8: S'-13943 | C8: 0.08 | D8: =G8-MIN('T-77'!G$3:'T-77'!G$79) -> 5.20796 | E8: ='T-77'!E19 -> -6922.38236 | F8: ='T-77'!F19 -> -64.21691 | G8: -6846.65958 | H8: 0.04803733059 | I8: 0.6588767087 | J8: -0.5788767087 | K8: ='T-77'!K19 -> 11.50587 | L8: N1 O N2 -O- | N8: 6
A9: 14229 | B9: R-14229 | C9: 2.75 | D9: =G9-MIN('T-77'!G$3:'T-77'!G$79) -> 4.15777 | E9: ='T-77'!E20 -> -6857.36028 | F9: ='T-77'!F20 -> -0.17326 | G9: -6847.70977 | H9: -1.223719146 | I9: -11.99650033 | J9: 14.74650033 | K9: ='T-77'!K20 -> 9.47725 | L9: N1 O N2 | N9: 7
A10: 14233 | B10: R-14233 | C10: 0.96 | D10: =MAX(G10-MIN('T-77'!G$3:'T-77'!G$79),-4.5) -> 0.53875 | E10: ='T-77'!E21 -> -6987.16853 | F10: ='T-77'!F21 -> -126.36249 | G10: -6851.32879 | H10: -4.694198325 | I10: -55.60771604 | J10: 56.56771604 | K10: ='T-77'!K21 -> 9.47725 | L10: N1 O N2 | N10: 8
A11: 14512 | B11: S'-14512 | C11: 47.5 | D11: =G11-MIN('T-77'!G$3:'T-77'!G$79) -> 7.93437 | E11: ='T-77'!E22 -> -6884.4362 | F11: ='T-77'!F22 -> -22.54547 | G11: -6843.93317 | H11: -1.160639679 | I11: 33.51364253 | J11: 13.98635747 | K11: ='T-77'!K22 -> 17.95756 | L11: N1 O N2 N3 -O- | N11: 9
A12: 15013 | B12: R-15013 | C12: 3.31 | D12: =G12-MIN('T-77'!G$3:'T-77'!G$79) -> 5.27158 | E12: ='T-77'!E23 -> -6891.96871 | F12: ='T-77'!F23 -> -35.8955 | G12: -6846.59596 | H12: -0.1563800174 | I12: 1.425533302 | J12: 1.884466698 | K12: ='T-77'!K23 -> 9.47725 | L12: N1 O N2 | N12: 10
A13: 15339 | B13: R'-15339 | C13: 38.5 | D13: =G13-MIN('T-77'!G$3:'T-77'!G$79) -> 8.21941 | E13: ='T-77'!E50 -> -6917.37491 | F13: ='T-77'!F50 -> -64.22091 | G13: -6843.64813 | H13: =IF(D13<>"",(D13-(L$36*C13+M$36)),"") -> -0.1287463876 | I13: 36.948534 | J13: 1.551466 | K13: ='T-77'!K50 -> 11.50587 | L13: N1 O N2 -O- | M13: ='T-77'!M50 -> -2 | N13: 11
A14: 15340 | B14: R'-15340 | C14: 0.31 | D14: =G14-MIN('T-77'!G$3:'T-77'!G$79) -> 6.63529 | E14: ='T-77'!E51 -> -6923.51663 | F14: ='T-77'!F51 -> -70.80713 | G14: -6845.23225 | H14: =IF(D14<>"",(D14-(L$36*C14+M$36)),"") -> 1.45628108 | I14: =IF(D14<>"", (D14-M$36)/L$36,"") -> 17.85900175 | J14: =IF(D14<>"", C14-(D14-M$36)/L$36,"") -> -17.54900175 | K14: ='T-77'!K51 -> 9.47725 | L14: N1 O N2 | M14: ='T-77'!M51 -> -2 | N14: 12
A15: 15341 | B15: S'-15341 | C15: 60.9 | D15: =G15-MIN('T-77'!G$3:'T-77'!G$79) -> 5.52886 | E15: ='T-77'!E52 -> -6930.67028 | F15: ='T-77'!F52 -> -70.79711 | G15: -6846.33868 | H15: -4.678131247 | I15: 4.52590124 | J15: 56.37409876 | K15: ='T-77'!K52 -> 13.53449 | L15: N1 O N2 2-O- | N15: 13
A16: 15359 | B16: S-15359 | C16: 92.1 | D16: =G16-MIN('T-77'!G$3:'T-77'!G$79) -> 11.60403 | E16: ='T-77'!E53 -> -6928.15017 | F16: ='T-77'!F53 -> -76.38079 | G16: -6840.26351 | H16: -1.192052658 | I16: 77.73509857 | J16: 14.36490143 | K16: ='T-77'!K53 -> 11.50587 | L16: N1 O N2 -O- | N16: 14
A17: 15381 | B17: R-15381 | C17: 0.05 | D17: =G17-MIN('T-77'!G$3:'T-77'!G$79) -> 2.66701 | E17: ='T-77'!E54 -> -6853.78426 | F17: ='T-77'!F54 -> 1.68537 | G17: -6849.20053 | H17: -2.490423158 | I17: -29.96099236 | J17: 30.01099236 | K17: ='T-77'!K54 -> 6.2691 | L17: N1 O | N17: 15
A18: 16321 | B18: R'-16321 | C18: 0.47 | D18: =G18-MIN('T-77'!G$3:'T-77'!G$79) -> 6.52818 | E18: ='T-77'!E55 -> -6877.29 | F18: ='T-77'!F55 -> -22.44477 | G18: -6845.33936 | H18: 1.335893688 | I18: 16.56826632 | J18: -16.09826632 | K18: ='T-77'!K55 -> 11.50587 | L18: N1 O N2 -O- | M18: ='T-77'!M55 -> -2 | N18: 16
A19: 16447 | B19: R-16447 | C19: 0.12 | D19: =G19-MIN('T-77'!G$3:'T-77'!G$79) -> 4.82279 | E19: ='T-77'!E56 -> -6933.64367 | F19: ='T-77'!F56 -> -75.09305 | G19: -6847.04475 | H19: -0.3404520174 | I19: -3.982637279 | J19: 4.102637279 | K19: ='T-77'!K56 -> 11.50587 | L19: N1 O N2 -O- | N19: 17
A20: 16452 | B20: S'-16452 | C20: 0.16 | D20: =G20-MIN('T-77'!G$3:'T-77'!G$79) -> 6.19708 | E20: ='T-77'!E57 -> -6968.38601 | F20: ='T-77'!F57 -> -111.20968 | G20: -6845.67046 | H20: 1.030518635 | I20: 12.57832608 | J20: -12.41832608 | K20: ='T-77'!K57 -> 11.50587 | L20: N1 O N2 -O- | N20: 18
A21: 16453 | B21: R-16453 | C21: 12.1 | D21: =G21-MIN('T-77'!G$3:'T-77'!G$79) -> 3.90262 | E21: ='T-77'!E58 -> -6899.64146 | F21: ='T-77'!F58 -> -45.40744 | G21: -6847.96492 | H21: -2.254766732 | I21: -15.07120058 | J21: 27.17120058 | K21: ='T-77'!K58 -> 6.2691 | L21: N1 O | N21: 19
A22: 16454 | B22: R-16454 | C22: 5.77 | D22: =G22-MIN('T-77'!G$3:'T-77'!G$79) -> 4.72149 | E22: ='T-77'!E59 -> -6978.69886 | F22: ='T-77'!F59 -> -122.07556 | G22: -6847.14605 | H22: -0.9106099171 | I22: -5.203358953 | J22: 10.97335895 | K22: ='T-77'!K59 -> 9.47725 | L22: N1 O N2 | N22: 20
A23: 17142 | B23: R'-17142 | C23: 23.3 | D23: =G23-MIN('T-77'!G$3:'T-77'!G$79) -> 8.43325 | E23: ='T-77'!E65 -> -6964.33888 | F23: ='T-77'!F65 -> -111.39872 | G23: -6843.43429 | H23: =IF(D23<>"",(D23-(L$36*C23+M$36)),"") -> 1.346445838 | I23: =IF(D23<>"", (D23-M$36)/L$36,"") -> 39.52542564 | J23: =IF(D23<>"", C23-(D23-M$36)/L$36,"") -> -16.22542564 | K23: ='T-77'!K65 -> 11.50587 | L23: N1 O N2 2-O- | M23: ='T-77'!M65 -> -2 | N23: 21
A24: 17145 | B24: S-17145 | C24: 0.25 | D24: =G24-MIN('T-77'!G$3:'T-77'!G$79) -> 10.37178 | E24: ='T-77'!E66 -> -6974.89277 | F24: ='T-77'!F66 -> -121.89114 | G24: -6841.49576 | H24: 5.197750102 | I24: 62.88579667 | J24: -62.63579667 | K24: ='T-77'!K66 -> 11.50587 | L24: N1 O N2 -O- | N24: 22
A25: 17396 | B25: R'-17396 | C25: 4.18 | D25: =G25-MIN('T-77'!G$3:'T-77'!G$79) -> 5.73218 | E25: ='T-77'!E67 -> -6959.66332 | F25: ='T-77'!F67 -> -106.05071 | G25: -6846.13536 | H25: 0.2320241644 | I25: 6.97602099 | J25: -2.79602099 | K25: ='T-77'!K67 -> 9.47725 | L25: N1 O N2 -O- | M25: ='T-77'!M67 -> -2 | N25: 23
A26: 18301 | B26: S'-18301 | C26: 0.4 | D26: =G26-MIN('T-77'!G$3:'T-77'!G$79) -> 4.84281 | E26: -6970.00475 | F26: -109.44553 | G26: -6847.02473 | H26: -0.3436674531 | I26: -3.741385079 | J26: 4.141385079 | K26: ='T-77'!K68 -> 13.53449 | L26: N1 O N2 2-O- | N26: 24
A27: 19349 | B27: D-19349 | C27: 76.6 | D27: =G27-MIN('T-77'!G$3:'T-77'!G$79) -> 14.09312 | E27: ='T-77'!E78 -> -6895.65697 | F27: -46.37668 | G27: -6837.77442 | H27: =IF(D27<>"",(D27-(L$36*C27+M$36)),"") -> 2.583284678 | I27: 107.7300256 | J27: -31.13002562 | K27: ='T-77'!K78 -> 11.50587 | L27: N1 O N2 -O- | N27: 25
H30: kcal mol-1 | J30: IC50 | L30: Results for Optimized globule
G31: AUE: | H31: =AVERAGE(ABS($H$3:$H$27)) -> 1.605419723 | J31: =AVERAGE(ABS(J3:J27)) -> 19.34620584
D32: =MAX(D3:D27) -> 15.79798 | G32: Max: | H32: =MAX(H3:H27) -> 5.197750102 | J32: =MAX(J3:J27) -> 56.56771604
G33: Min: | H33: =MIN(H3:H27) -> -4.694198325 | J33: =MIN(J3:J27) -> -62.63579667
I34: Ranges | L34: SLOPE | M34: INTERCEPT | N34: CORREL (Correlation) i.e.: R2
G35: Max-Min: | H35: =H32-H33 -> 9.891948426 | J35: =J32-J33 -> 119.2035127
L36: =SLOPE(D$3:D$27,C$3:C$27) -> 0.08298369907 | M36: =INTERCEPT(D$3:D$27,C$3:C$27) -> 5.153283973 | N36: =(CORREL($D$3:$D$27,$C$3:$C$27))^2 -> 0.5803425163

Sheet 23 Double-ring only
A1: 23 Double-headed ligands, unconstrained optimization
B2: ID | C2: Assay | D2: Relative Binding Energy | E2: Proteins plus ligands | F2: Ligands on their own | G2: Binding energy | H2: Distance in kcal/mol from trendline | I2: Calc'd IC50 | J2: Dist. in IC50 from trend line | K2: Corr. for desolv. | L2: Atoms desolvated | M2: Correction for methoxy - amide H interaction | N2: No. of ligands used
A3: 13204 | B3: R-13204 | C3: 100 | D3: =G3-MIN('T-77'!G$3:'T-77'!G$79) -> 15.79798 | E3: ='T-77'!E13 -> -6915.90416 | F3: ='T-77'!F13 -> -66.30011 | G3: =E3-F3+K3 -> -6836.06956 | H3: =IF(D3<>"",(D3-(L$35*C3+N$35)),"") -> 1.233841372 | I3: =IF(D3<>"", (D3-N$35)/L$35,"") -> 112.7064589 | J3: =IF(D3<>"", C3-(D3-N$35)/L$35,"") -> -12.7064589 | K3: ='T-77'!K13 -> 13.53449 | L3: N1 O N2 2-O- | N3: 1 | O3: CORREL: | P3: =(CORREL($D$3:$D$27,$C$3:$C$27))^2 -> 0.7633882832
A4: 13226 | B4: S-13226 | C4: 19.5 | D4: =G4-MIN('T-77'!G$3:'T-77'!G$79) -> 8.60782 | E4: ='T-77'!E15 -> -6887.44128 | F4: ='T-77'!F15 -> -32.67569 | G4: =E4-F4+K4+M4 -> -6843.25972 | H4: 1.860511473 | I4: 38.66009068 | J4: -19.16009068 | K4: ='T-77'!K15 -> 11.50587 | L4: N1 O N2 -O- | N4: =IF(D4<>"",(N3+1),N3) -> 2 | O4: AUE: | P4: =AVERAGE(ABS($H$3:$H$7)) -> 1.359669236
A5: 13291 | B5: S-13291 | C5: 0.68 | D5: =G5-MIN('T-77'!G$3:'T-77'!G$79) -> 6.78433 | E5: ='T-77'!E16 -> -6891.71902 | F5: ='T-77'!F16 -> -35.12994 | G5: =E5-F5+K5+M5 -> -6845.08321 | H5: 1.864508957 | I5: 19.88125794 | J5: -19.20125794 | K5: ='T-77'!K16 -> 11.50587 | L5: N1 O N2 -O- | N5: =IF(D5<>"",(N4+1),N4) -> 3
A6: 13294 | B6: R-13294 | C6: 1.71 | D6: =G6-MIN('T-77'!G$3:'T-77'!G$79) -> 6.3754 | E6: ='T-77'!E17 -> -6890.31568 | F6: ='T-77'!F17 -> -35.34629 | G6: -6845.49214 | H6: 1.355562373 | I6: 15.66997734 | J6: -13.95997734 | K6: ='T-77'!K17 -> 9.47725 | L6: N1 O N2 | N6: 4
A7: 13813 | B7: S-13813 | C7: 20.5 | D7: =G7-MIN('T-77'!G$3:'T-77'!G$79) -> 6.36049 | E7: ='T-77'!E18 -> -6918.70929 | F7: ='T-77'!F18 -> -60.51684 | G7: -6845.50705 | H7: -0.4839220068 | I7: 15.5164298 | J7: 4.983570199 | K7: ='T-77'!K18 -> 12.6854 | L7: N1 O 2N2 | N7: 5
A8: 13943 | B8: S'-13943 | C8: 0.08 | D8: =G8-MIN('T-77'!G$3:'T-77'!G$79) -> 5.20796 | E8: ='T-77'!E19 -> -6922.38236 | F8: ='T-77'!F19 -> -64.21691 | G8: -6846.65958 | H8: 0.346401045 | I8: 3.647339159 | J8: -3.567339159 | K8: ='T-77'!K19 -> 11.50587 | L8: N1 O N2 -O- | N8: 6
A9: 14229 | B9: R-14229 | C9: 2.75 | D9: =G9-MIN('T-77'!G$3:'T-77'!G$79) -> 4.15777 | E9: ='T-77'!E20 -> -6857.36028 | F9: ='T-77'!F20 -> -0.17326 | G9: -6847.70977 | H9: -0.9630552454 | I9: -7.167824265 | J9: 9.917824265 | K9: ='T-77'!K20 -> 9.47725 | L9: N1 O N2 | N9: 7
A10: 14233 | B10: R-14233 | C10: 0.96 | D10: =G10-MIN('T-77'!G$3:'T-77'!G$79) -> 0.53875 | E10: ='T-77'!E21 -> -6987.16853 | F10: ='T-77'!F21 -> -126.36249 | G10: -6851.32879 | H10: -4.408260017 | I10: -44.43754949 | J10: 45.39754949 | K10: ='T-77'!K21 -> 9.47725 | L10: N1 O N2 | N10: 8
A11: 14512 | B11: S'-14512 | C11: 47.5 | D11: =G11-MIN('T-77'!G$3:'T-77'!G$79) -> 7.93437 | E11: ='T-77'!E22 -> -6884.4362 | F11: ='T-77'!F22 -> -22.54547 | G11: -6843.93317 | H11: -1.531835954 | I11: 31.72470584 | J11: 15.77529416 | K11: ='T-77'!K22 -> 17.95756 | L11: N1 O N2 N3 -O- | N11: 9
A12: 15013 | B12: R-15013 | C12: 3.31 | D12: =G12-MIN('T-77'!G$3:'T-77'!G$79) -> 5.27158 | E12: ='T-77'!E23 -> -6891.96871 | F12: ='T-77'!F23 -> -35.8955 | G12: -6846.59596 | H12: 0.09637680611 | I12: 4.302516505 | J12: -0.992516505 | K12: ='T-77'!K23 -> 9.47725 | L12: N1 O N2 | N12: 10
A13: 15339 | B13: R'-15339 | C13: 38.5 | D13: =G13-MIN('T-77'!G$3:'T-77'!G$79) -> 8.21941 | E13: ='T-77'!E50 -> -6917.37491 | F13: ='T-77'!F50 -> -64.22091 | G13: -6843.64813 | H13: -0.3728646381 | I13: 34.66013103 | J13: 3.839868972 | K13: 11.50587 | L13: N1 O N2 -O- | M13: ='T-77'!M50 -> -2 | N13: 11
A14: 15340 | B14: R'-15340 | C14: 0.31 | D14: =G14-MIN('T-77'!G$3:'T-77'!G$79) -> 6.63529 | E14: ='T-77'!E51 -> -6923.51663 | F14: ='T-77'!F51 -> -70.80713 | G14: -6845.23225 | H14: =IF(D14<>"",(D14-(L$35*C14+N$35)),"") -> 1.751397245 | I14: =IF(D14<>"", (D14-N$35)/L$35,"") -> 18.34640048 | J14: =IF(D14<>"", C14-(D14-N$35)/L$35,"") -> -18.03640048 | K14: ='T-77'!K51 -> 9.47725 | L14: N1 O N2 | M14: ='T-77'!M51 -> -2 | N14: 12
A15: 15341 | B15: S'-15341 | C15: 60.9 | E15: ='T-77'!E52 -> -6930.67028 | F15: ='T-77'!F52 -> -70.79711 | G15: -6846.33868 | K15: ='T-77'!K52 -> 13.53449 | L15: N1 O N2 2-O- | N15: 12
A16: 15359 | B16: S-15359 | C16: 92.1 | D16: =G16-MIN('T-77'!G$3:'T-77'!G$79) -> 11.60403 | E16: ='T-77'!E53 -> -6928.15017 | F16: ='T-77'!F53 -> -76.38079 | G16: -6840.26351 | H16: =IF(D16<>"",(D16-(L$35*C16+N$35)),"") -> -2.19299114 | I16: =IF(D16<>"", (D16-N$35)/L$35,"") -> 69.51593657 | J16: =IF(D16<>"", C16-(D16-N$35)/L$35,"") -> 22.58406343 | K16: ='T-77'!K53 -> 11.50587 | L16: N1 O N2 -O- | N16: 13
A17: 15381 | B17: R-15381 | C17: 0.05 | D17: =G17-MIN('T-77'!G$3:'T-77'!G$79) -> 2.66701 | E17: ='T-77'!E54 -> -6853.78426 | F17: ='T-77'!F54 -> 1.68537 | G17: -6849.20053 | H17: -2.191635851 | I17: -22.52010626 | J17: 22.57010626 | K17: ='T-77'!K54 -> 6.2691 | L17: N1 O | N17: 14
A18: 16321 | B18: R'-16321 | C18: 0.47 | D18: =G18-MIN('T-77'!G$3:'T-77'!G$79) -> 6.52818 | E18: ='T-77'!E55 -> -6877.29 | F18: ='T-77'!F55 -> -22.44477 | G18: -6845.33936 | H18: 1.628750688 | I18: 17.24335041 | J18: -16.77335041 | K18: ='T-77'!K55 -> 11.50587 | L18: N1 O N2 -O- | M18: ='T-77'!M55 -> -2 | N18: 15
A19: 16447 | B19: R-16447 | C19: 0.12 | D19: =G19-MIN('T-77'!G$3:'T-77'!G$79) -> 4.82279 | E19: ='T-77'!E56 -> -6933.64367 | F19: ='T-77'!F56 -> -75.09305 | G19: -6847.04475 | H19: -0.04265309423 | I19: -0.3192540251 | J19: 0.4392540251 | K19: ='T-77'!K56 -> 11.50587 | L19: N1 O N2 -O- | N19: 16
A20: 16452 | B20: S'-16452 | C20: 0.16 | D20: =G20-MIN('T-77'!G$3:'T-77'!G$79) -> 6.19708 | E20: ='T-77'!E57 -> -6968.38601 | F20: ='T-77'!F57 -> -111.20968 | G20: -6845.67046 | H20: 1.327752767 | I20: 13.83358588 | J20: -13.67358588 | K20: ='T-77'!K57 -> 11.50587 | L20: N1 O N2 -O- | N20: 17
A21: 16453 | B21: R-16453 | C21: 12.1 | D21: =G21-MIN('T-77'!G$3:'T-77'!G$79) -> 3.90262 | E21: ='T-77'!E58 -> -6899.64146 | F21: ='T-77'!F58 -> -45.40744 | G21: -6847.96492 | H21: -2.126122779 | I21: -9.795433505 | J21: 21.8954335 | K21: ='T-77'!K58 -> 6.2691 | L21: N1 O | N21: 18
A22: 16454 | B22: R-16454 | C22: 5.77 | D22: =G22-MIN('T-77'!G$3:'T-77'!G$79) -> 4.72149 | E22: ='T-77'!E59 -> -6978.69886 | F22: ='T-77'!F59 -> -122.07556 | G22: -6847.14605 | H22: -0.6925877535 | I22: -1.362471019 | J22: 7.132471019 | K22: ='T-77'!K59 -> 9.47725 | L22: N1 O N2 | N22: 19
A23: 17142 | B23: R'-17142 | C23: 23.3 | D23: =G23-MIN('T-77'!G$3:'T-77'!G$79) -> 8.43325 | E23: ='T-77'!E65 -> -6964.33888 | F23: ='T-77'!F65 -> -111.39872 | G23: -6843.43429 | H23: =IF(D23<>"",(D23-(L$35*C23+N$35)),"") -> 1.316948251 | I23: =IF(D23<>"", (D23-N$35)/L$35,"") -> 36.86231782 | J23: =IF(D23<>"", C23-(D23-N$35)/L$35,"") -> -13.56231782 | K23: ='T-77'!K65 -> 11.50587 | L23: N1 O N2 2-O- | M23: ='T-77'!M65 -> -2 | N23: 20
A24: 17145 | B24: S-17145 | C24: 0.25 | E24: ='T-77'!E66 -> -6974.89277 | F24: ='T-77'!F66 -> -121.89114 | G24: -6841.49576 | K24: ='T-77'!K66 -> 11.50587 | L24: N1 O N2 -O- | N24: 20
A25: 17396 | B25: R'-17396 | C25: 4.18 | D25: =G25-MIN('T-77'!G$3:'T-77'!G$79) -> 5.73218 | E25: ='T-77'!E67 -> -6959.66332 | F25: ='T-77'!F67 -> -106.05071 | G25: -6846.13536 | H25: =IF(D25<>"",(D25-(L$35*C25+N$35)),"") -> 0.4724967789 | I25: =IF(D25<>"", (D25-N$35)/L$35,"") -> 9.045909865 | J25: =IF(D25<>"", C25-(D25-N$35)/L$35,"") -> -4.865909865 | K25: ='T-77'!K67 -> 9.47725 | L25: N1 O N2 -O- | M25: ='T-77'!M67 -> -2 | N25: 21
A26: 18301 | B26: S'-18301 | C26: 0.4 | D26: =G26-MIN('T-77'!G$3:'T-77'!G$79) -> 4.84281 | E26: -6970.00475 | F26: -109.44553 | G26: -6847.02473 | H26: =IF(D26<>"",(D26-(L$35*C26+N$35)),"") -> -0.04982206849 | I26: =IF(D26<>"", (D26-N$35)/L$35,"") -> -0.1130822164 | J26: =IF(D26<>"", C26-(D26-N$35)/L$35,"") -> 0.5130822164 | K26: ='T-77'!K68 -> 13.53449 | L26: N1 O N2 2-O- | N26: 22
A27: 19349 | B27: D-19349 | C27: 76.6 | D27: =G27-MIN('T-77'!G$3:'T-77'!G$79) -> 14.09312 | E27: ='T-77'!E78 -> -6895.65697 | F27: -46.37668 | G27: -6837.77442 | H27: =IF(D27<>"",(D27-(L$35*C27+N$35)),"") -> 1.801202792 | I27: =IF(D27<>"", (D27-N$35)/L$35,"") -> 95.14931256 | J27: =IF(D27<>"", C27-(D27-N$35)/L$35,"") -> -18.54931256 | K27: ='T-77'!K78 -> 11.50587 | L27: N1 O N2 -O- | N27: 23
H29: kcal mol-1 | J29: IC50 | L29: Results for Optimized globule
G30: AUE: | H30: =AVERAGE(ABS($H$3:$H$7)) -> 1.359669236 | J30: =AVERAGE(ABS(J3:J27)) -> 12.4038814
D31: =MAX(D3:D27) -> 15.79798 | G31: Max: | H31: =MAX(H3:H27) -> 1.864508957 | J31: =MAX(J3:J27) -> 45.39754949
G32: Min: | H32: =MIN(H3:H27) -> -4.408260017 | J32: =MIN(J3:J27) -> -19.20125794
I33: Ranges | L33: SLOPE | N33: INTERCEPT | O33: CORREL (Correlation) i.e.: R2
G34: Max-Min: | H34: =H31-H32 -> 6.272768974 | J34: =J31-J32 -> 64.59880743
L35: =SLOPE(D$3:D$27,C$3:C$27) -> 0.09710347952 | N35: =INTERCEPT(D$3:D$27,C$3:C$27) -> 4.853790677 | O35: =(CORREL($D$3:$D$27,$C$3:$C$27))^2 -> 0.7633882832

Sheet Desolvation
B2: Calculation of atom-specific solvation energy | F2: Comparison of PM6-ORG and reference solvation energy
B3: S66 system | C3: Label in Raw Data | D3: Solvation energy | G3: PM6-ORG separated | H3: PM6-ORG together | I3: PM6-ORG
B4: Water - Pyridine | C4: N1 | D4: -3.89498 | F4: Water - Pyridine | G4: -33.26502 | H4: -37.16 | I4: =H4-G4 -> -3.89498
B5: Water - Peptide | C5: O | D5: -2.37412 | F5: Water - Peptide | G5: -128.41443 | H5: -130.78855 | I5: -2.37412
B6: Peptide - Water | C6: N2 | D6: -3.20815 | F6: Peptide - Water | G6: -128.3235 | H6: -131.53165 | I6: -3.20815
B7: Water - Dimethylamine | C7: N3 | D7: -6.45169 | F7: Dimethylamine - Water | G7: -71.86895 | H7: -78.32064 | I7: -6.45169
B8: Water - CH3-O-CH3 | C8: >O | D8: -2.02862 | F8: 00 Water - Dimethyl ether | G8: -113.62899 | H8: -115.65761 | I8: -2.02862
B9: All energies in kcal mol-1 | F9: All energies in kcal mol-1
B10: COSMO used | F10: Original data
